Workbook

Sheet Interface
C1: Gestion Des Compteurs
H2: Fonctionne sous Excel, Version 2010 ou supérieur
F5: Dans ce logiciel , vous ne pouvez modifier, que les cellules de cette Couleur
B8: Basse par Jour en 100° pour le calcul des compteurs | F8: Jour | G8: Temps | H8: Saisie | J8: Module test | L8: RTT Salarier | M8: RTT Employeur | N8: Ancienneté | O8: Congés | P8: Report > à la Variation autorisée sur le RH Oui = 1 Non = 0 | Q8: Report des RH de l'Année N -1 | S8: Plage flottante de semaine. en sem.
F9: Lundi | G9: =(H9-INT(H9))*24 -> 7.5 | H9: 0.3125 | J9: 1 | K9: Jour | L9: 7 | M9: 8 | N9: 3 | O9: 25 | S9: 4
F10: Mardi | G10: =(H10-INT(H10))*24 -> 7.5 | H10: 0.3125 | J10: =J9*B12 -> 7.5 | K10: 100° H | L10: =L9*B12 -> 52.5 | M10: =M9*B12 -> 60 | N10: =N9*B12 -> 22.5 | O10: =O9*B12 -> 187.5 | S10: Variation Sem. + ou -
F11: Mercredi | G11: 7.5 | H11: 0.3125 | J11: =(TIME(TRUNC(ABS(J10-(INT(J10/24)*24))),ROUND((ABS(J10-(INT(J10/24)*24))-TRUNC(ABS(J10-(INT(J10/24)*24))))*60,),0))+INT(J10/24) -> 0.3125 | K11: humm | L11: =(TIME(TRUNC(ABS(L10-(INT(L10/24)*24))),ROUND((ABS(L10-(INT(L10/24)*24))-TRUNC(ABS(L10-(INT(L10/24)*24))))*60,),0))+INT(L10/24) -> 2.1875 | M11: =(TIME(TRUNC(ABS(M10-(INT(M10/24)*24))),ROUND((ABS(M10-(INT(M10/24)*24))-TRUNC(ABS(M10-(INT(M10/24)*24))))*60,),0))+INT(M10/24) -> 2.5 | N11: =(TIME(TRUNC(ABS(N10-(INT(N10/24)*24))),ROUND((ABS(N10-(INT(N10/24)*24))-TRUNC(ABS(N10-(INT(N10/24)*24))))*60,),0))+INT(N10/24) -> 0.9375 | O11: =(TIME(TRUNC(ABS(O10-(INT(O10/24)*24))),ROUND((ABS(O10-(INT(O10/24)*24))-TRUNC(ABS(O10-(INT(O10/24)*24))))*60,),0))+INT(O10/24) -> 7.8125 | P11: 0 | Q11: 0 | S11: 1
B12: 7.5 | F12: Jeudi | G12: 7.5 | H12: 0.3125
F13: Vendredi | G13: 7.5 | H13: 0.3125
F14: Samedi | G14: 0 | H14: 0 | Q14: Entre à la mains
F15: Dimanche | G15: 0 | H15: 0 | Q15: La gestion du temps
F16: TOTAL | G16: =SUM(G9:G15) -> 37.5 | H16: =SUM(H9:H15) -> 1.5625 | Q16: Que vous avez
J24: Développée par : | Q24: Version : | T24: =Carton!AD11 -> 2023
J25: Site : | K25: =Carton!AD14 -> Mich-Logiciel.fr | Q25: N° Série : | S25: =Carton!AD13 -> SN-2023-01-0001-AM

Sheet Compteur
B1: Saisie | S1: 1 | T1: 2 | U1: 3 | V1: 4 | W1: 5 = Ferié | X1: 7
A2: 100° | C2: =Carton!AD9 -> Gestion Des Compteurs | G2: =Carton!X10 -> Effectuées En 2023 | M2: 0 | P2: Solde en Report N-1 (hh:mn) | Q2: Heures par semaine | S2: Solde RTT Salarier (hh:mn) | T2: Solde RTT Employeur (hh:mn) | U2: Solde Ancienneté (hh:mn) | V2: Solde Congé (hh:mn) | X2: Solde RH - (hh:mn) | Y2: Solde RH + (100°)
A3: H.mn | B3: =TIME(TRUNC(B2),ROUND((B2-TRUNC(B2))*60,),0) -> 0 | C3: Arrivée (hh:mn) | D3: Départ (hh:mn) | E3: Arrivée (hh:mn) | F3: Départ (hh:mn) | M3: 0 | N3: =((M3-ROUNDDOWN(M3,0))/3*5)+ROUNDDOWN(M3,0) -> 0 | P3: 00:00:00 | Q3: =Interface!G16 -> 37.5 | S3: =Interface!L11-(S429) -> 2.1875 | T3: =Interface!M11-(T429) -> 2.5 | U3: =Interface!N11-(U429) -> 0.9375 | V3: =Interface!O11-(V429) -> 7.8125 | W3: 6 = Secu | X3: =X432 -> 0 | Y3: =Y432 -> 0 | Z3: Cumul
B4: =Carton!U10 -> 2023-01-02 | G4: =D4-C4+F4-E4 -> 00:00:00 | H4: =(G4-INT(G4))*24 -> 0 | I4: =IF(H4>0,H4-Interface!$G$9,0) -> 0 | J4: =IF(I4>=0,"+","-") -> + | K4: =TIME(TRUNC(ABS(I4)),ROUND((ABS(I4)-TRUNC(ABS(I4)))*60,),0) -> 0 | M4: =IF(H4>0,H4-Interface!$G$9,$M$2-Interface!$G$9) -> -7.5 | N4: =((M4-ROUNDDOWN(M4,0))/5*3)+ROUNDDOWN(M4,0) -> -7.3 | O4: =Interface!$S$9 -> 4 | P4: Report | Q4: =(P3-INT(P3))*24 -> 0 | Z4: =IF(S4>0,1,IF(T4>0,2,IF(U4>0,3,IF(V4>0,4,IF(W4>0,W4,IF(X4>0,7,"")))))) -> 
B5: =B4+1 -> 2023-01-03 | G5: 00:00:00 | H5: 0 | I5: =IF(H5>0,H5-Interface!$G$10+I4,0+I4) -> 0 | J5: + | K5: 0 | M5: =IF(H5>0,H5-Interface!$G$10+M4,$M$2-Interface!$G$10+M4) -> -15 | N5: -15 | O5: =Interface!$S$11 -> 1 | P5: En Plus | Q5: =IF(M10>0,M10,0) -> 0 | Z5: =IF(S5>0,1,IF(T5>0,2,IF(U5>0,3,IF(V5>0,4,IF(W5>0,W5,IF(X5>0,7,"")))))) ->  | AB5: Couleur de fond du Calcul
B6: =B5+1 -> 2023-01-04 | G6: 00:00:00 | H6: 0 | I6: =IF(H6>0,H6-Interface!$G$11+I5,0+I5) -> 0 | J6: + | K6: 0 | M6: =IF(H6>0,H6-Interface!$G$11+M5,$M$2-Interface!$G$11+M5) -> -22.5 | N6: -22.3 | O6: 0.01 | P6: Retenue + | Q6: =IF(Q5 > O9,O5,Q5) -> 0
B7: 2023-01-05 | G7: 00:00:00 | H7: 0 | I7: =IF(H7>0,H7-Interface!$G$12+I6,0+I6) -> 0 | J7: + | K7: 0 | M7: =IF(H7>0,H7-Interface!$G$12+M6,$M$2-Interface!$G$12+M6) -> -30 | N7: -30 | O7: =IF(Q7<0,-Q7,Q7) -> 0 | P7: En Moins | Q7: =IF(M10<-($Q$3-O6),0,IF(M10<0,M10,0)) -> 0
B8: 2023-01-06 | G8: 00:00:00 | H8: 0 | I8: =IF(H8>0,H8-Interface!$G$13+I7,0+I7) -> 0 | J8: + | K8: 0 | M8: =IF(H8>0,H8-Interface!$G$13+M7,$M$2-Interface!$G$13+M7) -> -37.5 | N8: -37.3 | O8: =SUM(O5-O6) -> 0.99 | P8: Retenue - | Q8: =IF(Q7=-Q3,0,IF(Q7>=0,0,IF(Q7>-O8,IF(Q4<O5,IF(Q7>-O8,IF(Q4=O7,Q7,IF(O7>Q4,IF((Q4-O5)<Q7,IF(O7>Q4,-Q4,Q4+Q7),-Q4),Q7)),Q7),Q7),IF(Q4<O5,IF(Q7>=-O8,44,Q4+Q7),-O5)))) -> 0 | AC8: 2 | AF8: 7
B9: 2023-01-07 | G9: 00:00:00 | H9: 0 | I9: =IF(H9>0,H9-Interface!$G$14+I8,0+I8) -> 0 | J9: + | K9: 0 | M9: =IF(H9>0,H9-Interface!$G$14+M8,$M$2-Interface!$G$14+M8) -> -37.5 | N9: -37.3 | O9: =SUM(O5+O6) -> 1.01 | P9: =IF(M10=0,Q4, IF(M10=-$Q$3,Q4,IF(Q4+Q6>O4,0,IF(Q4<O5,IF(Q6>0,Q4+Q8+Q6,Q4-O7),0)))) -> 0 | Q9: =IF(M10=-$Q$3,0,IF(Q4+Q6>O4,O4,IF(Q4>=O5,IF(Q8<=-O6,Q4+Q8,Q4+Q6),0))) -> 0
B10: 2023-01-08 | G10: 00:00:00 | H10: 0 | I10: =IF(H10>0,H10-Interface!$G$15+I9,0+I9) -> 0 | J10: + | K10: 0 | M10: =IF(H10>0,H10-Interface!$G$15+M9,$M$2-Interface!$G$15+M9) -> -37.5 | N10: -37.3 | P10: =IF(M10=0,Q4,IF((P9+Q9)<=0,0,P9+Q9)) -> 0 | Q10: =IF(M10=-$Q$3,0,IF(M10<-O6,IF(Q4>-O8,IF(Q4<O5,IF(Q7<-O8,Q8,IF(Q4=0,Q7,IF(Q4=O7,Q4+Q7,Q7-Q8))),IF(Q7<=-O5,Q7-Q8,IF((Q4-Q8)>0,0,41))),0),0)) -> 0 | AC10: 3 | AF10: 8
C11: Ajustement Compteur | E11: 0 | F11: 1 | G11: =G4+G5+G6+G7+G8+G9+G10 -> 0 | H11: =SUM(H4:H10) -> 0 | I11: =I10 -> 0 | J11: =IF(I11>=0,"+","-") -> + | K11: =TIME(TRUNC(ABS(I11)),ROUND((ABS(I11)-TRUNC(ABS(I11)))*60,),0) -> 0 | M11: =M10 -> -37.5 | N11: -37.3 | O11: =((P11-INT(P11))*5/3)+INT(P11) -> 0 | P11: =((P10-INT(P10))*3/5)+INT(P10)+E11 -> 0 | Q11: =((Q10-ROUNDDOWN(Q10,0))/5*3)+ROUNDDOWN(Q10,0) -> 0 | S11: =SUM(S4:S10) -> 0 | T11: =SUM(T4:T10) -> 0 | U11: =SUM(U4:U10) -> 0 | V11: =SUM(V4:V10) -> 0 | X11: =SUM(X4:X10) -> 0 | Y11: =SUM(Y4:Y10)+IF(Interface!$P$11=O5,IF(Q4<O4,IF(Q4+Q5>(O4-O6),Q4+Q5-O4,0),Q5)) -> 0
B12: =B10+1 -> 2023-01-09 | G12: =D12-C12+F12-E12 -> 00:00:00 | H12: =(G12-INT(G12))*24 -> 0 | I12: =IF(H12>0,H12-Interface!$G$9,0) -> 0 | J12: =IF(I12>=0,"+","-") -> + | K12: =TIME(TRUNC(ABS(I12)),ROUND((ABS(I12)-TRUNC(ABS(I12)))*60,),0) -> 0 | M12: =IF(H12>0,H12-Interface!$G$9,$M$2-Interface!$G$9) -> -7.5 | N12: -7.3 | O12: =Interface!$S$9 -> 4 | P12: Report | Q12: =O11 -> 0 | Z12: =IF(S12>0,1,IF(T12>0,2,IF(U12>0,3,IF(V12>0,4,IF(W12>0,W12,IF(X12>0,7,"")))))) ->  | AC12: 4 | AF12: 9
B13: =B12+1 -> 2023-01-10 | G13: 00:00:00 | H13: 0 | I13: =IF(H13>0,H13-Interface!$G$10+I12,0+I12) -> 0 | J13: + | K13: 0 | M13: =IF(H13>0,H13-Interface!$G$10+M12,$M$2-Interface!$G$10+M12) -> -15 | N13: -15 | O13: =Interface!$S$11 -> 1 | P13: En Plus | Q13: =IF(M18>0,M18,0) -> 0 | Z13: =IF(S13>0,1,IF(T13>0,2,IF(U13>0,3,IF(V13>0,4,IF(W13>0,W13,IF(X13>0,7,"")))))) -> 
B14: 2023-01-11 | G14: 00:00:00 | H14: 0 | I14: =IF(H14>0,H14-Interface!$G$11+I13,0+I13) -> 0 | J14: + | K14: 0 | M14: =IF(H14>0,H14-Interface!$G$11+M13,$M$2-Interface!$G$11+M13) -> -22.5 | N14: -22.3 | O14: 0.01 | P14: Retenue + | Q14: =IF(Q13 > O17,O13,Q13) -> 0 | AC14: 5 | AF14: 10
B15: 2023-01-12 | G15: 00:00:00 | H15: 0 | I15: =IF(H15>0,H15-Interface!$G$12+I14,0+I14) -> 0 | J15: + | K15: 0 | M15: =IF(H15>0,H15-Interface!$G$12+M14,$M$2-Interface!$G$12+M14) -> -30 | N15: -30 | O15: =IF(Q15<0,-Q15,Q15) -> 0 | P15: En Moins | Q15: =IF(M18<-($Q$3-O14),0,IF(M18<0,M18,0)) -> 0
B16: 2023-01-13 | G16: 00:00:00 | H16: 0 | I16: =IF(H16>0,H16-Interface!$G$13+I15,0+I15) -> 0 | J16: + | K16: 0 | M16: =IF(H16>0,H16-Interface!$G$13+M15,$M$2-Interface!$G$13+M15) -> -37.5 | N16: -37.3 | O16: =SUM(O13-O14) -> 0.99 | P16: Retenue - | Q16: =IF(Q15=-Q11,0,IF(Q15>=0,0,IF(Q15>-O16,IF(Q12<O13,IF(Q15>-O16,IF(Q12=O15,Q15,IF(O15>Q12,IF((Q12-O13)<Q15,IF(O15>Q12,-Q12,Q12+Q15),-Q12),Q15)),Q15),Q15),IF(Q12<O13,IF(Q15>=-O16,44,Q12+Q15),-O13)))) -> 0 | AC16: 6 | AF16: 11
B17: 2023-01-14 | G17: 00:00:00 | H17: 0 | I17: =IF(H17>0,H17-Interface!$G$14+I16,0+I16) -> 0 | J17: + | K17: 0 | M17: =IF(H17>0,H17-Interface!$G$14+M16,$M$2-Interface!$G$14+M16) -> -37.5 | N17: -37.3 | O17: =SUM(O13+O14) -> 1.01 | P17: =IF(M18=0,Q12, IF(M18=-$Q$3,Q12,IF(Q12+Q14>O12,0,IF(Q12<O13,IF(Q14>0,Q12+Q16+Q14,Q12-O15),0)))) -> 0 | Q17: =IF(M18=-$Q$3,0,IF(Q12+Q14>O12,O12,IF(Q12>=O13,IF(Q16<=-O14,Q12+Q16,Q12+Q14),0))) -> 0
B18: 2023-01-15 | G18: 00:00:00 | H18: 0 | I18: =IF(H18>0,H18-Interface!$G$15+I17,0+I17) -> 0 | J18: + | K18: 0 | M18: =IF(H18>0,H18-Interface!$G$15+M17,$M$2-Interface!$G$15+M17) -> -37.5 | N18: -37.3 | P18: =IF(M18=0,Q12,IF((P17+Q17)<=0,0,P17+Q17)) -> 0 | Q18: =IF(M18=-$Q$3,0,IF(M18<-O14,IF(Q12>-O16,IF(Q12<O13,IF(Q15<-O16,Q16,IF(Q12=0,Q15,IF(Q12=O15,Q12+Q15,Q15-Q16))),IF(Q15<=-O13,Q15-Q16,IF((Q12-Q16)>0,0,41))),0),0)) -> 0
C19: Ajustement Compteur | E19: 0 | F19: =F11+1 -> 2 | G19: =G12+G13+G14+G15+G16+G17+G18 -> 0 | H19: =SUM(H12:H18) -> 0 | I19: =I18 -> 0 | J19: + | K19: 0 | M19: =M18 -> -37.5 | N19: -37.3 | O19: =((P19-INT(P19))*5/3)+INT(P19) -> 0 | P19: =((P18-INT(P18))*3/5)+INT(P18)+E19 -> 0 | Q19: =((Q18-ROUNDDOWN(Q18,0))/5*3)+ROUNDDOWN(Q18,0) -> 0 | S19: =SUM(S12:S18) -> 0 | T19: =SUM(T12:T18) -> 0 | U19: =SUM(U12:U18) -> 0 | V19: =SUM(V12:V18) -> 0 | X19: =SUM(X12:X18) -> 0 | Y19: =SUM(Y12:Y18)+IF(Interface!$P$11=O13,IF(Q12<O12,IF(Q12+Q13>(O12-O14),Q12+Q13-O12,0),Q13)) -> 0
B20: =B18+1 -> 2023-01-16 | G20: =D20-C20+F20-E20 -> 00:00:00 | H20: =(G20-INT(G20))*24 -> 0 | I20: =IF(H20>0,H20-Interface!$G$9,0) -> 0 | J20: + | K20: 0 | M20: =IF(H20>0,H20-Interface!$G$9,$M$2-Interface!$G$9) -> -7.5 | N20: -7.3 | O20: =Interface!$S$9 -> 4 | P20: Report | Q20: =O19 -> 0 | Z20: =IF(S20>0,1,IF(T20>0,2,IF(U20>0,3,IF(V20>0,4,IF(W20>0,W20,IF(X20>0,7,"")))))) ->  | AB20: Votre Choix
B21: =B20+1 -> 2023-01-17 | G21: 00:00:00 | H21: 0 | I21: =IF(H21>0,H21-Interface!$G$10+I20,0+I20) -> 0 | J21: + | K21: 0 | M21: =IF(H21>0,H21-Interface!$G$10+M20,$M$2-Interface!$G$10+M20) -> -15 | N21: -15 | O21: =Interface!$S$11 -> 1 | P21: En Plus | Q21: =IF(M26>0,M26,0) -> 0 | Z21: =IF(S21>0,1,IF(T21>0,2,IF(U21>0,3,IF(V21>0,4,IF(W21>0,W21,IF(X21>0,7,"")))))) -> 
B22: 2023-01-18 | G22: 00:00:00 | H22: 0 | I22: =IF(H22>0,H22-Interface!$G$11+I21,0+I21) -> 0 | J22: + | K22: 0 | M22: =IF(H22>0,H22-Interface!$G$11+M21,$M$2-Interface!$G$11+M21) -> -22.5 | N22: -22.3 | O22: 0.01 | P22: Retenue + | Q22: =IF(Q21 > O25,O21,Q21) -> 0 | AC22: 4
B23: 2023-01-19 | G23: 00:00:00 | H23: 0 | I23: =IF(H23>0,H23-Interface!$G$12+I22,0+I22) -> 0 | J23: + | K23: 0 | M23: =IF(H23>0,H23-Interface!$G$12+M22,$M$2-Interface!$G$12+M22) -> -30 | N23: -30 | O23: =IF(Q23<0,-Q23,Q23) -> 0 | P23: En Moins | Q23: =IF(M26<-($Q$3-O22),0,IF(M26<0,M26,0)) -> 0
B24: 2023-01-20 | G24: 00:00:00 | H24: 0 | I24: =IF(H24>0,H24-Interface!$G$13+I23,0+I23) -> 0 | J24: + | K24: 0 | M24: =IF(H24>0,H24-Interface!$G$13+M23,$M$2-Interface!$G$13+M23) -> -37.5 | N24: -37.3 | O24: =SUM(O21-O22) -> 0.99 | P24: Retenue - | Q24: =IF(Q23=-Q19,0,IF(Q23>=0,0,IF(Q23>-O24,IF(Q20<O21,IF(Q23>-O24,IF(Q20=O23,Q23,IF(O23>Q20,IF((Q20-O21)<Q23,IF(O23>Q20,-Q20,Q20+Q23),-Q20),Q23)),Q23),Q23),IF(Q20<O21,IF(Q23>=-O24,44,Q20+Q23),-O21)))) -> 0
B25: 2023-01-21 | G25: 00:00:00 | H25: 0 | I25: =IF(H25>0,H25-Interface!$G$14+I24,0+I24) -> 0 | J25: + | K25: 0 | M25: =IF(H25>0,H25-Interface!$G$14+M24,$M$2-Interface!$G$14+M24) -> -37.5 | N25: -37.3 | O25: =SUM(O21+O22) -> 1.01 | P25: =IF(M26=0,Q20, IF(M26=-$Q$3,Q20,IF(Q20+Q22>O20,0,IF(Q20<O21,IF(Q22>0,Q20+Q24+Q22,Q20-O23),0)))) -> 0 | Q25: =IF(M26=-$Q$3,0,IF(Q20+Q22>O20,O20,IF(Q20>=O21,IF(Q24<=-O22,Q20+Q24,Q20+Q22),0))) -> 0
B26: 2023-01-22 | G26: 00:00:00 | H26: 0 | I26: =IF(H26>0,H26-Interface!$G$15+I25,0+I25) -> 0 | J26: + | K26: 0 | M26: =IF(H26>0,H26-Interface!$G$15+M25,$M$2-Interface!$G$15+M25) -> -37.5 | N26: -37.3 | P26: =IF(M26=0,Q20,IF((P25+Q25)<=0,0,P25+Q25)) -> 0 | Q26: =IF(M26=-$Q$3,0,IF(M26<-O22,IF(Q20>-O24,IF(Q20<O21,IF(Q23<-O24,Q24,IF(Q20=0,Q23,IF(Q20=O23,Q20+Q23,Q23-Q24))),IF(Q23<=-O21,Q23-Q24,IF((Q20-Q24)>0,0,41))),0),0)) -> 0
C27: Ajustement Compteur | E27: 0 | F27: =F19+1 -> 3 | G27: =G20+G21+G22+G23+G24+G25+G26 -> 0 | H27: =SUM(H20:H26) -> 0 | I27: =I26 -> 0 | J27: + | K27: 0 | M27: =M26 -> -37.5 | N27: -37.3 | O27: =((P27-INT(P27))*5/3)+INT(P27) -> 0 | P27: =((P26-INT(P26))*3/5)+INT(P26)+E27 -> 0 | Q27: =((Q26-ROUNDDOWN(Q26,0))/5*3)+ROUNDDOWN(Q26,0) -> 0 | S27: =SUM(S20:S26) -> 0 | T27: 0 | U27: 0 | V27: 0 | X27: =SUM(X20:X26) -> 0 | Y27: =SUM(Y20:Y26)+IF(Interface!$P$11=O21,IF(Q20<O20,IF(Q20+Q21>(O20-O22),Q20+Q21-O20,0),Q21)) -> 0
B28: =B26+1 -> 2023-01-23 | G28: =D28-C28+F28-E28 -> 00:00:00 | H28: =(G28-INT(G28))*24 -> 0 | I28: =IF(H28>0,H28-Interface!$G$9,0) -> 0 | J28: + | K28: 0 | M28: =IF(H28>0,H28-Interface!$G$9,$M$2-Interface!$G$9) -> -7.5 | N28: -7.3 | O28: =Interface!$S$9 -> 4 | P28: Report | Q28: =O27 -> 0 | Z28: =IF(S28>0,1,IF(T28>0,2,IF(U28>0,3,IF(V28>0,4,IF(W28>0,W28,IF(X28>0,7,"")))))) -> 
B29: =B28+1 -> 2023-01-24 | G29: 00:00:00 | H29: 0 | I29: =IF(H29>0,H29-Interface!$G$10+I28,0+I28) -> 0 | J29: + | K29: 0 | M29: =IF(H29>0,H29-Interface!$G$10+M28,$M$2-Interface!$G$10+M28) -> -15 | N29: -15 | O29: =Interface!$S$11 -> 1 | P29: En Plus | Q29: =IF(M34>0,M34,0) -> 0 | Z29: =IF(S29>0,1,IF(T29>0,2,IF(U29>0,3,IF(V29>0,4,IF(W29>0,W29,IF(X29>0,7,"")))))) -> 
B30: 2023-01-25 | G30: 00:00:00 | H30: 0 | I30: =IF(H30>0,H30-Interface!$G$11+I29,0+I29) -> 0 | J30: + | K30: 0 | M30: =IF(H30>0,H30-Interface!$G$11+M29,$M$2-Interface!$G$11+M29) -> -22.5 | N30: -22.3 | O30: 0.01 | P30: Retenue + | Q30: =IF(Q29 > O33,O29,Q29) -> 0
B31: 2023-01-26 | G31: 00:00:00 | H31: 0 | I31: =IF(H31>0,H31-Interface!$G$12+I30,0+I30) -> 0 | J31: + | K31: 0 | M31: =IF(H31>0,H31-Interface!$G$12+M30,$M$2-Interface!$G$12+M30) -> -30 | N31: -30 | O31: =IF(Q31<0,-Q31,Q31) -> 0 | P31: En Moins | Q31: =IF(M34<-($Q$3-O30),0,IF(M34<0,M34,0)) -> 0
B32: 2023-01-27 | G32: 00:00:00 | H32: 0 | I32: =IF(H32>0,H32-Interface!$G$13+I31,0+I31) -> 0 | J32: + | K32: 0 | M32: =IF(H32>0,H32-Interface!$G$13+M31,$M$2-Interface!$G$13+M31) -> -37.5 | N32: -37.3 | O32: =SUM(O29-O30) -> 0.99 | P32: Retenue - | Q32: =IF(Q31=-Q27,0,IF(Q31>=0,0,IF(Q31>-O32,IF(Q28<O29,IF(Q31>-O32,IF(Q28=O31,Q31,IF(O31>Q28,IF((Q28-O29)<Q31,IF(O31>Q28,-Q28,Q28+Q31),-Q28),Q31)),Q31),Q31),IF(Q28<O29,IF(Q31>=-O32,44,Q28+Q31),-O29)))) -> 0
B33: 2023-01-28 | G33: 00:00:00 | H33: 0 | I33: =IF(H33>0,H33-Interface!$G$14+I32,0+I32) -> 0 | J33: + | K33: 0 | M33: =IF(H33>0,H33-Interface!$G$14+M32,$M$2-Interface!$G$14+M32) -> -37.5 | N33: -37.3 | O33: =SUM(O29+O30) -> 1.01 | P33: =IF(M34=0,Q28, IF(M34=-$Q$3,Q28,IF(Q28+Q30>O28,0,IF(Q28<O29,IF(Q30>0,Q28+Q32+Q30,Q28-O31),0)))) -> 0 | Q33: =IF(M34=-$Q$3,0,IF(Q28+Q30>O28,O28,IF(Q28>=O29,IF(Q32<=-O30,Q28+Q32,Q28+Q30),0))) -> 0
B34: 2023-01-29 | G34: 00:00:00 | H34: 0 | I34: =IF(H34>0,H34-Interface!$G$15+I33,0+I33) -> 0 | J34: + | K34: 0 | M34: =IF(H34>0,H34-Interface!$G$15+M33,$M$2-Interface!$G$15+M33) -> -37.5 | N34: -37.3 | P34: =IF(M34=0,Q28,IF((P33+Q33)<=0,0,P33+Q33)) -> 0 | Q34: =IF(M34=-$Q$3,0,IF(M34<-O30,IF(Q28>-O32,IF(Q28<O29,IF(Q31<-O32,Q32,IF(Q28=0,Q31,IF(Q28=O31,Q28+Q31,Q31-Q32))),IF(Q31<=-O29,Q31-Q32,IF((Q28-Q32)>0,0,41))),0),0)) -> 0
C35: Ajustement Compteur | E35: 0 | F35: =F27+1 -> 4 | G35: =G28+G29+G30+G31+G32+G33+G34 -> 0 | H35: =SUM(H28:H34) -> 0 | I35: =I34 -> 0 | J35: + | K35: 0 | M35: -37.5 | N35: -37.3 | O35: =((P35-INT(P35))*5/3)+INT(P35) -> 0 | P35: =((P34-INT(P34))*3/5)+INT(P34)+E35 -> 0 | Q35: =((Q34-ROUNDDOWN(Q34,0))/5*3)+ROUNDDOWN(Q34,0) -> 0 | S35: =SUM(S28:S34) -> 0 | T35: 0 | U35: 0 | V35: 0 | X35: =SUM(X28:X34) -> 0 | Y35: =SUM(Y28:Y34)+IF(Interface!$P$11=O29,IF(Q28<O28,IF(Q28+Q29>(O28-O30),Q28+Q29-O28,0),Q29)) -> 0
B36: =B34+1 -> 2023-01-30 | G36: =D36-C36+F36-E36 -> 00:00:00 | H36: =(G36-INT(G36))*24 -> 0 | I36: =IF(H36>0,H36-Interface!$G$9,0) -> 0 | J36: + | K36: 0 | M36: =IF(H36>0,H36-Interface!$G$9,$M$2-Interface!$G$9) -> -7.5 | N36: -7.3 | O36: =Interface!$S$9 -> 4 | P36: Report | Q36: =O35 -> 0 | Z36: =IF(S36>0,1,IF(T36>0,2,IF(U36>0,3,IF(V36>0,4,IF(W36>0,W36,IF(X36>0,7,"")))))) -> 
B37: =B36+1 -> 2023-01-31 | G37: 00:00:00 | H37: 0 | I37: =IF(H37>0,H37-Interface!$G$10+I36,0+I36) -> 0 | J37: + | K37: 0 | M37: =IF(H37>0,H37-Interface!$G$10+M36,$M$2-Interface!$G$10+M36) -> -15 | N37: -15 | O37: =Interface!$S$11 -> 1 | P37: En Plus | Q37: =IF(M42>0,M42,0) -> 0 | Z37: =IF(S37>0,1,IF(T37>0,2,IF(U37>0,3,IF(V37>0,4,IF(W37>0,W37,IF(X37>0,7,"")))))) -> 
B38: 2023-02-01 | G38: 00:00:00 | H38: 0 | I38: =IF(H38>0,H38-Interface!$G$11+I37,0+I37) -> 0 | J38: + | K38: 0 | M38: =IF(H38>0,H38-Interface!$G$11+M37,$M$2-Interface!$G$11+M37) -> -22.5 | N38: -22.3 | O38: 0.01 | P38: Retenue + | Q38: =IF(Q37 > O41,O37,Q37) -> 0
B39: 2023-02-02 | G39: 00:00:00 | H39: 0 | I39: =IF(H39>0,H39-Interface!$G$12+I38,0+I38) -> 0 | J39: + | K39: 0 | M39: =IF(H39>0,H39-Interface!$G$12+M38,$M$2-Interface!$G$12+M38) -> -30 | N39: -30 | O39: =IF(Q39<0,-Q39,Q39) -> 0 | P39: En Moins | Q39: =IF(M42<-($Q$3-O38),0,IF(M42<0,M42,0)) -> 0
B40: 2023-02-03 | G40: 00:00:00 | H40: 0 | I40: =IF(H40>0,H40-Interface!$G$13+I39,0+I39) -> 0 | J40: + | K40: 0 | M40: =IF(H40>0,H40-Interface!$G$13+M39,$M$2-Interface!$G$13+M39) -> -37.5 | N40: -37.3 | O40: =SUM(O37-O38) -> 0.99 | P40: Retenue - | Q40: =IF(Q39=-Q35,0,IF(Q39>=0,0,IF(Q39>-O40,IF(Q36<O37,IF(Q39>-O40,IF(Q36=O39,Q39,IF(O39>Q36,IF((Q36-O37)<Q39,IF(O39>Q36,-Q36,Q36+Q39),-Q36),Q39)),Q39),Q39),IF(Q36<O37,IF(Q39>=-O40,44,Q36+Q39),-O37)))) -> 0
B41: 2023-02-04 | G41: 00:00:00 | H41: 0 | I41: =IF(H41>0,H41-Interface!$G$14+I40,0+I40) -> 0 | J41: + | K41: 0 | M41: =IF(H41>0,H41-Interface!$G$14+M40,$M$2-Interface!$G$14+M40) -> -37.5 | N41: -37.3 | O41: =SUM(O37+O38) -> 1.01 | P41: =IF(M42=0,Q36, IF(M42=-$Q$3,Q36,IF(Q36+Q38>O36,0,IF(Q36<O37,IF(Q38>0,Q36+Q40+Q38,Q36-O39),0)))) -> 0 | Q41: =IF(M42=-$Q$3,0,IF(Q36+Q38>O36,O36,IF(Q36>=O37,IF(Q40<=-O38,Q36+Q40,Q36+Q38),0))) -> 0
B42: 2023-02-05 | G42: 00:00:00 | H42: 0 | I42: =IF(H42>0,H42-Interface!$G$15+I41,0+I41) -> 0 | J42: + | K42: 0 | M42: =IF(H42>0,H42-Interface!$G$15+M41,$M$2-Interface!$G$15+M41) -> -37.5 | N42: -37.3 | P42: =IF(M42=0,Q36,IF((P41+Q41)<=0,0,P41+Q41)) -> 0 | Q42: =IF(M42=-$Q$3,0,IF(M42<-O38,IF(Q36>-O40,IF(Q36<O37,IF(Q39<-O40,Q40,IF(Q36=0,Q39,IF(Q36=O39,Q36+Q39,Q39-Q40))),IF(Q39<=-O37,Q39-Q40,IF((Q36-Q40)>0,0,41))),0),0)) -> 0
B43: Janvier | C43: Ajustement Compteur | E43: 0 | F43: =F35+1 -> 5 | G43: =G36+G37+G38+G39+G40+G41+G42 -> 0 | H43: =SUM(H36:H42) -> 0 | I43: =I42 -> 0 | J43: + | K43: 0 | M43: -37.5 | N43: -37.3 | O43: =((P43-INT(P43))*5/3)+INT(P43) -> 0 | P43: =((P42-INT(P42))*3/5)+INT(P42)+E43 -> 0 | Q43: =((Q42-ROUNDDOWN(Q42,0))/5*3)+ROUNDDOWN(Q42,0) -> 0 | S43: =SUM(S36:S42)+S11+S19+S27+S35 -> 0 | T43: =SUM(T36:T42)+T11+T19+T27+T35 -> 0 | U43: 0 | V43: 0 | X43: =SUM(X36:X42)+X11+X19+X27+X35 -> 0 | Y43: =(SUM(Y36:Y42)+Y35+Y27+Y19+Y11)+IF(Interface!$Q$12=1,IF(Q36<O28,IF(Q36+Q37>(O28-O30),Q36+Q37-O36,0),Q37)) -> 0
B44: =B42+1 -> 2023-02-06 | G44: =D44-C44+F44-E44 -> 00:00:00 | H44: =(G44-INT(G44))*24 -> 0 | I44: =IF(H44>0,H44-Interface!$G$9,0) -> 0 | J44: + | K44: 0 | M44: =IF(H44>0,H44-Interface!$G$9,$M$2-Interface!$G$9) -> -7.5 | N44: -7.3 | O44: =Interface!$S$9 -> 4 | P44: Report | Q44: =O43 -> 0 | Z44: =IF(S44>0,1,IF(T44>0,2,IF(U44>0,3,IF(V44>0,4,IF(W44>0,W44,IF(X44>0,7,"")))))) -> 
B45: =B44+1 -> 2023-02-07 | G45: 00:00:00 | H45: 0 | I45: =IF(H45>0,H45-Interface!$G$10+I44,0+I44) -> 0 | J45: + | K45: 0 | M45: =IF(H45>0,H45-Interface!$G$10+M44,$M$2-Interface!$G$10+M44) -> -15 | N45: -15 | O45: =Interface!$S$11 -> 1 | P45: En Plus | Q45: =IF(M50>0,M50,0) -> 0 | Z45: =IF(S45>0,1,IF(T45>0,2,IF(U45>0,3,IF(V45>0,4,IF(W45>0,W45,IF(X45>0,7,"")))))) -> 
B46: 2023-02-08 | G46: 00:00:00 | H46: 0 | I46: =IF(H46>0,H46-Interface!$G$11+I45,0+I45) -> 0 | J46: + | K46: 0 | M46: =IF(H46>0,H46-Interface!$G$11+M45,$M$2-Interface!$G$11+M45) -> -22.5 | N46: -22.3 | O46: 0.01 | P46: Retenue + | Q46: =IF(Q45 > O49,O45,Q45) -> 0
B47: 2023-02-09 | G47: 00:00:00 | H47: 0 | I47: =IF(H47>0,H47-Interface!$G$12+I46,0+I46) -> 0 | J47: + | K47: 0 | M47: =IF(H47>0,H47-Interface!$G$12+M46,$M$2-Interface!$G$12+M46) -> -30 | N47: -30 | O47: =IF(Q47<0,-Q47,Q47) -> 0 | P47: En Moins | Q47: =IF(M50<-($Q$3-O46),0,IF(M50<0,M50,0)) -> 0
B48: 2023-02-10 | G48: 00:00:00 | H48: 0 | I48: =IF(H48>0,H48-Interface!$G$13+I47,0+I47) -> 0 | J48: + | K48: 0 | M48: =IF(H48>0,H48-Interface!$G$13+M47,$M$2-Interface!$G$13+M47) -> -37.5 | N48: -37.3 | O48: =SUM(O45-O46) -> 0.99 | P48: Retenue - | Q48: =IF(Q47=-Q43,0,IF(Q47>=0,0,IF(Q47>-O48,IF(Q44<O45,IF(Q47>-O48,IF(Q44=O47,Q47,IF(O47>Q44,IF((Q44-O45)<Q47,IF(O47>Q44,-Q44,Q44+Q47),-Q44),Q47)),Q47),Q47),IF(Q44<O45,IF(Q47>=-O48,44,Q44+Q47),-O45)))) -> 0
B49: 2023-02-11 | G49: 00:00:00 | H49: 0 | I49: =IF(H49>0,H49-Interface!$G$14+I48,0+I48) -> 0 | J49: + | K49: 0 | M49: =IF(H49>0,H49-Interface!$G$14+M48,$M$2-Interface!$G$14+M48) -> -37.5 | N49: -37.3 | O49: =SUM(O45+O46) -> 1.01 | P49: =IF(M50=0,Q44, IF(M50=-$Q$3,Q44,IF(Q44+Q46>O44,0,IF(Q44<O45,IF(Q46>0,Q44+Q48+Q46,Q44-O47),0)))) -> 0 | Q49: =IF(M50=-$Q$3,0,IF(Q44+Q46>O44,O44,IF(Q44>=O45,IF(Q48<=-O46,Q44+Q48,Q44+Q46),0))) -> 0
B50: 2023-02-12 | G50: 00:00:00 | H50: 0 | I50: =IF(H50>0,H50-Interface!$G$15+I49,0+I49) -> 0 | J50: + | K50: 0 | M50: =IF(H50>0,H50-Interface!$G$15+M49,$M$2-Interface!$G$15+M49) -> -37.5 | N50: -37.3 | P50: =IF(M50=0,Q44,IF((P49+Q49)<=0,0,P49+Q49)) -> 0 | Q50: =IF(M50=-$Q$3,0,IF(M50<-O46,IF(Q44>-O48,IF(Q44<O45,IF(Q47<-O48,Q48,IF(Q44=0,Q47,IF(Q44=O47,Q44+Q47,Q47-Q48))),IF(Q47<=-O45,Q47-Q48,IF((Q44-Q48)>0,0,41))),0),0)) -> 0
C51: Ajustement Compteur | E51: 0 | F51: =F43+1 -> 6 | G51: =G44+G45+G46+G47+G48+G49+G50 -> 0 | H51: =SUM(H44:H50) -> 0 | I51: =I50 -> 0 | J51: + | K51: 0 | M51: -37.5 | N51: -37.3 | O51: =((P51-INT(P51))*5/3)+INT(P51) -> 0 | P51: =((P50-INT(P50))*3/5)+INT(P50)+E51 -> 0 | Q51: =((Q50-ROUNDDOWN(Q50,0))/5*3)+ROUNDDOWN(Q50,0) -> 0 | S51: =SUM(S44:S50) -> 0 | T51: 0 | U51: 0 | V51: 0 | X51: =SUM(X44:X50) -> 0 | Y51: =SUM(Y44:Y50)+IF(Interface!$P$11=O45,IF(Q44<O44,IF(Q44+Q45>(O44-O46),Q44+Q45-O44,0),Q45)) -> 0
B52: =B50+1 -> 2023-02-13 | G52: =D52-C52+F52-E52 -> 00:00:00 | H52: =(G52-INT(G52))*24 -> 0 | I52: =IF(H52>0,H52-Interface!$G$9,0) -> 0 | J52: + | K52: 0 | M52: =IF(H52>0,H52-Interface!$G$9,$M$2-Interface!$G$9) -> -7.5 | N52: -7.3 | O52: =Interface!$S$9 -> 4 | P52: Report | Q52: =O51 -> 0 | Z52: =IF(S52>0,1,IF(T52>0,2,IF(U52>0,3,IF(V52>0,4,IF(W52>0,W52,IF(X52>0,7,"")))))) -> 
B53: =B52+1 -> 2023-02-14 | G53: 00:00:00 | H53: 0 | I53: =IF(H53>0,H53-Interface!$G$10+I52,0+I52) -> 0 | J53: + | K53: 0 | M53: =IF(H53>0,H53-Interface!$G$10+M52,$M$2-Interface!$G$10+M52) -> -15 | N53: -15 | O53: =Interface!$S$11 -> 1 | P53: En Plus | Q53: =IF(M58>0,M58,0) -> 0 | Z53: =IF(S53>0,1,IF(T53>0,2,IF(U53>0,3,IF(V53>0,4,IF(W53>0,W53,IF(X53>0,7,"")))))) -> 
B54: 2023-02-15 | G54: 00:00:00 | H54: 0 | I54: =IF(H54>0,H54-Interface!$G$11+I53,0+I53) -> 0 | J54: + | K54: 0 | M54: =IF(H54>0,H54-Interface!$G$11+M53,$M$2-Interface!$G$11+M53) -> -22.5 | N54: -22.3 | O54: 0.01 | P54: Retenue + | Q54: =IF(Q53 > O57,O53,Q53) -> 0
B55: 2023-02-16 | G55: 00:00:00 | H55: 0 | I55: =IF(H55>0,H55-Interface!$G$12+I54,0+I54) -> 0 | J55: + | K55: 0 | M55: =IF(H55>0,H55-Interface!$G$12+M54,$M$2-Interface!$G$12+M54) -> -30 | N55: -30 | O55: =IF(Q55<0,-Q55,Q55) -> 0 | P55: En Moins | Q55: =IF(M58<-($Q$3-O54),0,IF(M58<0,M58,0)) -> 0
B56: 2023-02-17 | G56: 00:00:00 | H56: 0 | I56: =IF(H56>0,H56-Interface!$G$13+I55,0+I55) -> 0 | J56: + | K56: 0 | M56: =IF(H56>0,H56-Interface!$G$13+M55,$M$2-Interface!$G$13+M55) -> -37.5 | N56: -37.3 | O56: =SUM(O53-O54) -> 0.99 | P56: Retenue - | Q56: =IF(Q55=-Q51,0,IF(Q55>=0,0,IF(Q55>-O56,IF(Q52<O53,IF(Q55>-O56,IF(Q52=O55,Q55,IF(O55>Q52,IF((Q52-O53)<Q55,IF(O55>Q52,-Q52,Q52+Q55),-Q52),Q55)),Q55),Q55),IF(Q52<O53,IF(Q55>=-O56,44,Q52+Q55),-O53)))) -> 0
B57: 2023-02-18 | G57: 00:00:00 | H57: 0 | I57: =IF(H57>0,H57-Interface!$G$14+I56,0+I56) -> 0 | J57: + | K57: 0 | M57: =IF(H57>0,H57-Interface!$G$14+M56,$M$2-Interface!$G$14+M56) -> -37.5 | N57: -37.3 | O57: =SUM(O53+O54) -> 1.01 | P57: =IF(M58=0,Q52, IF(M58=-$Q$3,Q52,IF(Q52+Q54>O52,0,IF(Q52<O53,IF(Q54>0,Q52+Q56+Q54,Q52-O55),0)))) -> 0 | Q57: =IF(M58=-$Q$3,0,IF(Q52+Q54>O52,O52,IF(Q52>=O53,IF(Q56<=-O54,Q52+Q56,Q52+Q54),0))) -> 0
B58: 2023-02-19 | G58: 00:00:00 | H58: 0 | I58: =IF(H58>0,H58-Interface!$G$15+I57,0+I57) -> 0 | J58: + | K58: 0 | M58: =IF(H58>0,H58-Interface!$G$15+M57,$M$2-Interface!$G$15+M57) -> -37.5 | N58: -37.3 | P58: =IF(M58=0,Q52,IF((P57+Q57)<=0,0,P57+Q57)) -> 0 | Q58: =IF(M58=-$Q$3,0,IF(M58<-O54,IF(Q52>-O56,IF(Q52<O53,IF(Q55<-O56,Q56,IF(Q52=0,Q55,IF(Q52=O55,Q52+Q55,Q55-Q56))),IF(Q55<=-O53,Q55-Q56,IF((Q52-Q56)>0,0,41))),0),0)) -> 0
C59: Ajustement Compteur | E59: 0 | F59: =F51+1 -> 7 | G59: =G52+G53+G54+G55+G56+G57+G58 -> 0 | H59: =SUM(H52:H58) -> 0 | I59: =I58 -> 0 | J59: + | K59: 0 | M59: -37.5 | N59: -37.3 | O59: =((P59-INT(P59))*5/3)+INT(P59) -> 0 | P59: =((P58-INT(P58))*3/5)+INT(P58)+E59 -> 0 | Q59: =((Q58-ROUNDDOWN(Q58,0))/5*3)+ROUNDDOWN(Q58,0) -> 0 | S59: =SUM(S52:S58) -> 0 | T59: 0 | U59: 0 | V59: 0 | X59: =SUM(X52:X58) -> 0 | Y59: =SUM(Y52:Y58)+IF(Interface!$P$11=O53,IF(Q52<O52,IF(Q52+Q53>(O52-O54),Q52+Q53-O52,0),Q53)) -> 0
B60: =B58+1 -> 2023-02-20 | G60: =D60-C60+F60-E60 -> 00:00:00 | H60: =(G60-INT(G60))*24 -> 0 | I60: =IF(H60>0,H60-Interface!$G$9,0) -> 0 | J60: + | K60: 0 | M60: =IF(H60>0,H60-Interface!$G$9,$M$2-Interface!$G$9) -> -7.5 | N60: -7.3 | O60: =Interface!$S$9 -> 4 | P60: Report | Q60: =O59 -> 0 | Z60: =IF(S60>0,1,IF(T60>0,2,IF(U60>0,3,IF(V60>0,4,IF(W60>0,W60,IF(X60>0,7,"")))))) -> 
B61: =B60+1 -> 2023-02-21 | G61: 00:00:00 | H61: 0 | I61: =IF(H61>0,H61-Interface!$G$10+I60,0+I60) -> 0 | J61: + | K61: 0 | M61: =IF(H61>0,H61-Interface!$G$10+M60,$M$2-Interface!$G$10+M60) -> -15 | N61: -15 | O61: =Interface!$S$11 -> 1 | P61: En Plus | Q61: =IF(M66>0,M66,0) -> 0 | Z61: =IF(S61>0,1,IF(T61>0,2,IF(U61>0,3,IF(V61>0,4,IF(W61>0,W61,IF(X61>0,7,"")))))) -> 
B62: 2023-02-22 | G62: 00:00:00 | H62: 0 | I62: =IF(H62>0,H62-Interface!$G$11+I61,0+I61) -> 0 | J62: + | K62: 0 | M62: =IF(H62>0,H62-Interface!$G$11+M61,$M$2-Interface!$G$11+M61) -> -22.5 | N62: -22.3 | O62: 0.01 | P62: Retenue + | Q62: =IF(Q61 > O65,O61,Q61) -> 0
B63: 2023-02-23 | G63: 00:00:00 | H63: 0 | I63: =IF(H63>0,H63-Interface!$G$12+I62,0+I62) -> 0 | J63: + | K63: 0 | M63: =IF(H63>0,H63-Interface!$G$12+M62,$M$2-Interface!$G$12+M62) -> -30 | N63: -30 | O63: =IF(Q63<0,-Q63,Q63) -> 0 | P63: En Moins | Q63: =IF(M66<-($Q$3-O62),0,IF(M66<0,M66,0)) -> 0
B64: 2023-02-24 | G64: 00:00:00 | H64: 0 | I64: =IF(H64>0,H64-Interface!$G$13+I63,0+I63) -> 0 | J64: + | K64: 0 | M64: =IF(H64>0,H64-Interface!$G$13+M63,$M$2-Interface!$G$13+M63) -> -37.5 | N64: -37.3 | O64: =SUM(O61-O62) -> 0.99 | P64: Retenue - | Q64: =IF(Q63=-Q59,0,IF(Q63>=0,0,IF(Q63>-O64,IF(Q60<O61,IF(Q63>-O64,IF(Q60=O63,Q63,IF(O63>Q60,IF((Q60-O61)<Q63,IF(O63>Q60,-Q60,Q60+Q63),-Q60),Q63)),Q63),Q63),IF(Q60<O61,IF(Q63>=-O64,44,Q60+Q63),-O61)))) -> 0
B65: 2023-02-25 | G65: 00:00:00 | H65: 0 | I65: =IF(H65>0,H65-Interface!$G$14+I64,0+I64) -> 0 | J65: + | K65: 0 | M65: =IF(H65>0,H65-Interface!$G$14+M64,$M$2-Interface!$G$14+M64) -> -37.5 | N65: -37.3 | O65: =SUM(O61+O62) -> 1.01 | P65: =IF(M66=0,Q60, IF(M66=-$Q$3,Q60,IF(Q60+Q62>O60,0,IF(Q60<O61,IF(Q62>0,Q60+Q64+Q62,Q60-O63),0)))) -> 0 | Q65: =IF(M66=-$Q$3,0,IF(Q60+Q62>O60,O60,IF(Q60>=O61,IF(Q64<=-O62,Q60+Q64,Q60+Q62),0))) -> 0
B66: 2023-02-26 | G66: 00:00:00 | H66: 0 | I66: =IF(H66>0,H66-Interface!$G$15+I65,0+I65) -> 0 | J66: + | K66: 0 | M66: =IF(H66>0,H66-Interface!$G$15+M65,$M$2-Interface!$G$15+M65) -> -37.5 | N66: -37.3 | P66: =IF(M66=0,Q60,IF((P65+Q65)<=0,0,P65+Q65)) -> 0 | Q66: =IF(M66=-$Q$3,0,IF(M66<-O62,IF(Q60>-O64,IF(Q60<O61,IF(Q63<-O64,Q64,IF(Q60=0,Q63,IF(Q60=O63,Q60+Q63,Q63-Q64))),IF(Q63<=-O61,Q63-Q64,IF((Q60-Q64)>0,0,41))),0),0)) -> 0
C67: Ajustement Compteur | E67: 0 | F67: =F59+1 -> 8 | G67: =G60+G61+G62+G63+G64+G65+G66 -> 0 | H67: =SUM(H60:H66) -> 0 | I67: =I66 -> 0 | J67: + | K67: 0 | M67: -37.5 | N67: -37.3 | O67: =((P67-INT(P67))*5/3)+INT(P67) -> 0 | P67: =((P66-INT(P66))*3/5)+INT(P66)+E67 -> 0 | Q67: =((Q66-ROUNDDOWN(Q66,0))/5*3)+ROUNDDOWN(Q66,0) -> 0 | S67: =SUM(S60:S66) -> 0 | T67: 0 | U67: 0 | V67: 0 | X67: =SUM(X60:X66) -> 0 | Y67: =SUM(Y60:Y66)+IF(Interface!$P$11=O61,IF(Q60<O60,IF(Q60+Q61>(O60-O62),Q60+Q61-O60,0),Q61)) -> 0
B68: =B66+1 -> 2023-02-27 | G68: =D68-C68+F68-E68 -> 00:00:00 | H68: =(G68-INT(G68))*24 -> 0 | I68: =IF(H68>0,H68-Interface!$G$9,0) -> 0 | J68: + | K68: 0 | M68: =IF(H68>0,H68-Interface!$G$9,$M$2-Interface!$G$9) -> -7.5 | N68: =((M68-ROUNDDOWN(M68,0))/5*3)+ROUNDDOWN(M68,0) -> -7.3 | O68: =Interface!$S$9 -> 4 | P68: Report | Q68: =O67 -> 0 | Z68: =IF(S68>0,1,IF(T68>0,2,IF(U68>0,3,IF(V68>0,4,IF(W68>0,W68,IF(X68>0,7,"")))))) -> 
B69: =B68+1 -> 2023-02-28 | G69: 00:00:00 | H69: 0 | I69: =IF(H69>0,H69-Interface!$G$10+I68,0+I68) -> 0 | J69: + | K69: 0 | M69: =IF(H69>0,H69-Interface!$G$10+M68,$M$2-Interface!$G$10+M68) -> -15 | N69: -15 | O69: =Interface!$S$11 -> 1 | P69: En Plus | Q69: =IF(M74>0,M74,0) -> 0 | Z69: =IF(S69>0,1,IF(T69>0,2,IF(U69>0,3,IF(V69>0,4,IF(W69>0,W69,IF(X69>0,7,"")))))) -> 
B70: 2023-03-01 | G70: 00:00:00 | H70: 0 | I70: =IF(H70>0,H70-Interface!$G$11+I69,0+I69) -> 0 | J70: + | K70: 0 | M70: =IF(H70>0,H70-Interface!$G$11+M69,$M$2-Interface!$G$11+M69) -> -22.5 | N70: -22.3 | O70: 0.01 | P70: Retenue + | Q70: =IF(Q69 > O73,O69,Q69) -> 0
B71: 2023-03-02 | G71: 00:00:00 | H71: 0 | I71: =IF(H71>0,H71-Interface!$G$12+I70,0+I70) -> 0 | J71: + | K71: 0 | M71: =IF(H71>0,H71-Interface!$G$12+M70,$M$2-Interface!$G$12+M70) -> -30 | N71: -30 | O71: =IF(Q71<0,-Q71,Q71) -> 0 | P71: En Moins | Q71: =IF(M74<-($Q$3-O70),0,IF(M74<0,M74,0)) -> 0
B72: 2023-03-03 | G72: 00:00:00 | H72: 0 | I72: =IF(H72>0,H72-Interface!$G$13+I71,0+I71) -> 0 | J72: + | K72: 0 | M72: =IF(H72>0,H72-Interface!$G$13+M71,$M$2-Interface!$G$13+M71) -> -37.5 | N72: -37.3 | O72: =SUM(O69-O70) -> 0.99 | P72: Retenue - | Q72: =IF(Q71=-Q67,0,IF(Q71>=0,0,IF(Q71>-O72,IF(Q68<O69,IF(Q71>-O72,IF(Q68=O71,Q71,IF(O71>Q68,IF((Q68-O69)<Q71,IF(O71>Q68,-Q68,Q68+Q71),-Q68),Q71)),Q71),Q71),IF(Q68<O69,IF(Q71>=-O72,44,Q68+Q71),-O69)))) -> 0
B73: 2023-03-04 | G73: 00:00:00 | H73: 0 | I73: =IF(H73>0,H73-Interface!$G$14+I72,0+I72) -> 0 | J73: + | K73: 0 | M73: =IF(H73>0,H73-Interface!$G$14+M72,$M$2-Interface!$G$14+M72) -> -37.5 | N73: -37.3 | O73: =SUM(O69+O70) -> 1.01 | P73: =IF(M74=0,Q68, IF(M74=-$Q$3,Q68,IF(Q68+Q70>O68,0,IF(Q68<O69,IF(Q70>0,Q68+Q72+Q70,Q68-O71),0)))) -> 0 | Q73: =IF(M74=-$Q$3,0,IF(Q68+Q70>O68,O68,IF(Q68>=O69,IF(Q72<=-O70,Q68+Q72,Q68+Q70),0))) -> 0
B74: 2023-03-05 | G74: 00:00:00 | H74: 0 | I74: =IF(H74>0,H74-Interface!$G$15+I73,0+I73) -> 0 | J74: + | K74: 0 | M74: =IF(H74>0,H74-Interface!$G$15+M73,$M$2-Interface!$G$15+M73) -> -37.5 | N74: -37.3 | P74: =IF(M74=0,Q68,IF((P73+Q73)<=0,0,P73+Q73)) -> 0 | Q74: =IF(M74=-$Q$3,0,IF(M74<-O70,IF(Q68>-O72,IF(Q68<O69,IF(Q71<-O72,Q72,IF(Q68=0,Q71,IF(Q68=O71,Q68+Q71,Q71-Q72))),IF(Q71<=-O69,Q71-Q72,IF((Q68-Q72)>0,0,41))),0),0)) -> 0
B75: Février | C75: Ajustement Compteur | E75: 0 | F75: =F67+1 -> 9 | G75: =G68+G69+G70+G71+G72+G73+G74 -> 0 | H75: =SUM(H68:H74) -> 0 | I75: =I74 -> 0 | J75: + | K75: 0 | M75: -37.5 | N75: -37.3 | O75: =((P75-INT(P75))*5/3)+INT(P75) -> 0 | P75: =((P74-INT(P74))*3/5)+INT(P74)+E75 -> 0 | Q75: =((Q74-ROUNDDOWN(Q74,0))/5*3)+ROUNDDOWN(Q74,0) -> 0 | S75: =SUM(S68:S74)+S51+S59+S67 -> 0 | T75: =SUM(T68:T74)+T51+T59+T67 -> 0 | U75: 0 | V75: 0 | X75: =SUM(X68:X74)+X51+X59+X67 -> 0 | Y75: =(SUM(Y68:Y74)+Y67+Y59+Y51)+IF(Interface!$Q$12=1,IF(Q68<O60,IF(Q68+Q69>(O60-O62),Q68+Q69-O68,0),Q69)) -> 0
B76: =B74+1 -> 2023-03-06 | G76: =D76-C76+F76-E76 -> 00:00:00 | H76: =(G76-INT(G76))*24 -> 0 | I76: =IF(H76>0,H76-Interface!$G$9,0) -> 0 | J76: =IF(I76>=0,"+","-") -> + | K76: =TIME(TRUNC(ABS(I76)),ROUND((ABS(I76)-TRUNC(ABS(I76)))*60,),0) -> 0 | M76: =IF(H76>0,H76-Interface!$G$9,$M$2-Interface!$G$9) -> -7.5 | N76: -7.3 | O76: =Interface!$S$9 -> 4 | P76: Report | Q76: =O75 -> 0 | Z76: =IF(S76>0,1,IF(T76>0,2,IF(U76>0,3,IF(V76>0,4,IF(W76>0,W76,IF(X76>0,7,"")))))) -> 
B77: =B76+1 -> 2023-03-07 | G77: 00:00:00 | H77: 0 | I77: =IF(H77>0,H77-Interface!$G$10+I76,0+I76) -> 0 | J77: + | K77: 0 | M77: =IF(H77>0,H77-Interface!$G$10+M76,$M$2-Interface!$G$10+M76) -> -15 | N77: -15 | O77: =Interface!$S$11 -> 1 | P77: En Plus | Q77: =IF(M82>0,M82,0) -> 0 | Z77: =IF(S77>0,1,IF(T77>0,2,IF(U77>0,3,IF(V77>0,4,IF(W77>0,W77,IF(X77>0,7,"")))))) -> 
B78: 2023-03-08 | G78: 00:00:00 | H78: 0 | I78: =IF(H78>0,H78-Interface!$G$11+I77,0+I77) -> 0 | J78: + | K78: 0 | M78: =IF(H78>0,H78-Interface!$G$11+M77,$M$2-Interface!$G$11+M77) -> -22.5 | N78: -22.3 | O78: 0.01 | P78: Retenue + | Q78: =IF(Q77 > O81,O77,Q77) -> 0
B79: 2023-03-09 | G79: 00:00:00 | H79: 0 | I79: =IF(H79>0,H79-Interface!$G$12+I78,0+I78) -> 0 | J79: + | K79: 0 | M79: =IF(H79>0,H79-Interface!$G$12+M78,$M$2-Interface!$G$12+M78) -> -30 | N79: -30 | O79: =IF(Q79<0,-Q79,Q79) -> 0 | P79: En Moins | Q79: =IF(M82<-($Q$3-O78),0,IF(M82<0,M82,0)) -> 0
B80: 2023-03-10 | G80: 00:00:00 | H80: 0 | I80: =IF(H80>0,H80-Interface!$G$13+I79,0+I79) -> 0 | J80: + | K80: 0 | M80: =IF(H80>0,H80-Interface!$G$13+M79,$M$2-Interface!$G$13+M79) -> -37.5 | N80: -37.3 | O80: =SUM(O77-O78) -> 0.99 | P80: Retenue - | Q80: =IF(Q79=-Q75,0,IF(Q79>=0,0,IF(Q79>-O80,IF(Q76<O77,IF(Q79>-O80,IF(Q76=O79,Q79,IF(O79>Q76,IF((Q76-O77)<Q79,IF(O79>Q76,-Q76,Q76+Q79),-Q76),Q79)),Q79),Q79),IF(Q76<O77,IF(Q79>=-O80,44,Q76+Q79),-O77)))) -> 0
B81: 2023-03-11 | G81: 00:00:00 | H81: 0 | I81: =IF(H81>0,H81-Interface!$G$14+I80,0+I80) -> 0 | J81: + | K81: 0 | M81: =IF(H81>0,H81-Interface!$G$14+M80,$M$2-Interface!$G$14+M80) -> -37.5 | N81: -37.3 | O81: =SUM(O77+O78) -> 1.01 | P81: =IF(M82=0,Q76, IF(M82=-$Q$3,Q76,IF(Q76+Q78>O76,0,IF(Q76<O77,IF(Q78>0,Q76+Q80+Q78,Q76-O79),0)))) -> 0 | Q81: =IF(M82=-$Q$3,0,IF(Q76+Q78>O76,O76,IF(Q76>=O77,IF(Q80<=-O78,Q76+Q80,Q76+Q78),0))) -> 0
B82: 2023-03-12 | G82: 00:00:00 | H82: 0 | I82: =IF(H82>0,H82-Interface!$G$15+I81,0+I81) -> 0 | J82: + | K82: 0 | M82: =IF(H82>0,H82-Interface!$G$15+M81,$M$2-Interface!$G$15+M81) -> -37.5 | N82: -37.3 | P82: =IF(M82=0,Q76,IF((P81+Q81)<=0,0,P81+Q81)) -> 0 | Q82: =IF(M82=-$Q$3,0,IF(M82<-O78,IF(Q76>-O80,IF(Q76<O77,IF(Q79<-O80,Q80,IF(Q76=0,Q79,IF(Q76=O79,Q76+Q79,Q79-Q80))),IF(Q79<=-O77,Q79-Q80,IF((Q76-Q80)>0,0,41))),0),0)) -> 0
C83: Ajustement Compteur | E83: 0 | F83: =F75+1 -> 10 | G83: =G76+G77+G78+G79+G80+G81+G82 -> 0 | H83: =SUM(H76:H82) -> 0 | I83: =I82 -> 0 | J83: + | K83: 0 | M83: -37.5 | N83: -37.3 | O83: =((P83-INT(P83))*5/3)+INT(P83) -> 0 | P83: =((P82-INT(P82))*3/5)+INT(P82)+E83 -> 0 | Q83: =((Q82-ROUNDDOWN(Q82,0))/5*3)+ROUNDDOWN(Q82,0) -> 0 | S83: =SUM(S76:S82) -> 0 | T83: 0 | U83: 0 | V83: 0 | X83: =SUM(X76:X82) -> 0 | Y83: =SUM(Y76:Y82)+IF(Interface!$P$11=O77,IF(Q76<O76,IF(Q76+Q77>(O76-O78),Q76+Q77-O76,0),Q77)) -> 0
B84: =B82+1 -> 2023-03-13 | G84: =D84-C84+F84-E84 -> 00:00:00 | H84: =(G84-INT(G84))*24 -> 0 | I84: =IF(H84>0,H84-Interface!$G$9,0) -> 0 | J84: + | K84: 0 | M84: =IF(H84>0,H84-Interface!$G$9,$M$2-Interface!$G$9) -> -7.5 | N84: -7.3 | O84: =Interface!$S$9 -> 4 | P84: Report | Q84: =O83 -> 0 | Z84: =IF(S84>0,1,IF(T84>0,2,IF(U84>0,3,IF(V84>0,4,IF(W84>0,W84,IF(X84>0,7,"")))))) -> 
B85: =B84+1 -> 2023-03-14 | G85: 00:00:00 | H85: 0 | I85: =IF(H85>0,H85-Interface!$G$10+I84,0+I84) -> 0 | J85: + | K85: 0 | M85: =IF(H85>0,H85-Interface!$G$10+M84,$M$2-Interface!$G$10+M84) -> -15 | N85: -15 | O85: =Interface!$S$11 -> 1 | P85: En Plus | Q85: =IF(M90>0,M90,0) -> 0 | Z85: =IF(S85>0,1,IF(T85>0,2,IF(U85>0,3,IF(V85>0,4,IF(W85>0,W85,IF(X85>0,7,"")))))) -> 
B86: 2023-03-15 | G86: 00:00:00 | H86: 0 | I86: =IF(H86>0,H86-Interface!$G$11+I85,0+I85) -> 0 | J86: + | K86: 0 | M86: =IF(H86>0,H86-Interface!$G$11+M85,$M$2-Interface!$G$11+M85) -> -22.5 | N86: -22.3 | O86: 0.01 | P86: Retenue + | Q86: =IF(Q85 > O89,O85,Q85) -> 0
B87: 2023-03-16 | G87: 00:00:00 | H87: 0 | I87: =IF(H87>0,H87-Interface!$G$12+I86,0+I86) -> 0 | J87: + | K87: 0 | M87: =IF(H87>0,H87-Interface!$G$12+M86,$M$2-Interface!$G$12+M86) -> -30 | N87: -30 | O87: =IF(Q87<0,-Q87,Q87) -> 0 | P87: En Moins | Q87: =IF(M90<-($Q$3-O86),0,IF(M90<0,M90,0)) -> 0
B88: 2023-03-17 | G88: 00:00:00 | H88: 0 | I88: =IF(H88>0,H88-Interface!$G$13+I87,0+I87) -> 0 | J88: + | K88: 0 | M88: =IF(H88>0,H88-Interface!$G$13+M87,$M$2-Interface!$G$13+M87) -> -37.5 | N88: -37.3 | O88: =SUM(O85-O86) -> 0.99 | P88: Retenue - | Q88: =IF(Q87=-Q83,0,IF(Q87>=0,0,IF(Q87>-O88,IF(Q84<O85,IF(Q87>-O88,IF(Q84=O87,Q87,IF(O87>Q84,IF((Q84-O85)<Q87,IF(O87>Q84,-Q84,Q84+Q87),-Q84),Q87)),Q87),Q87),IF(Q84<O85,IF(Q87>=-O88,44,Q84+Q87),-O85)))) -> 0
B89: 2023-03-18 | G89: 00:00:00 | H89: 0 | I89: =IF(H89>0,H89-Interface!$G$14+I88,0+I88) -> 0 | J89: + | K89: 0 | M89: =IF(H89>0,H89-Interface!$G$14+M88,$M$2-Interface!$G$14+M88) -> -37.5 | N89: -37.3 | O89: =SUM(O85+O86) -> 1.01 | P89: =IF(M90=0,Q84, IF(M90=-$Q$3,Q84,IF(Q84+Q86>O84,0,IF(Q84<O85,IF(Q86>0,Q84+Q88+Q86,Q84-O87),0)))) -> 0 | Q89: =IF(M90=-$Q$3,0,IF(Q84+Q86>O84,O84,IF(Q84>=O85,IF(Q88<=-O86,Q84+Q88,Q84+Q86),0))) -> 0
B90: 2023-03-19 | G90: 00:00:00 | H90: 0 | I90: =IF(H90>0,H90-Interface!$G$15+I89,0+I89) -> 0 | J90: + | K90: 0 | M90: =IF(H90>0,H90-Interface!$G$15+M89,$M$2-Interface!$G$15+M89) -> -37.5 | N90: -37.3 | P90: =IF(M90=0,Q84,IF((P89+Q89)<=0,0,P89+Q89)) -> 0 | Q90: =IF(M90=-$Q$3,0,IF(M90<-O86,IF(Q84>-O88,IF(Q84<O85,IF(Q87<-O88,Q88,IF(Q84=0,Q87,IF(Q84=O87,Q84+Q87,Q87-Q88))),IF(Q87<=-O85,Q87-Q88,IF((Q84-Q88)>0,0,41))),0),0)) -> 0
C91: Ajustement Compteur | E91: 0 | F91: =F83+1 -> 11 | G91: =G84+G85+G86+G87+G88+G89+G90 -> 0 | H91: =SUM(H84:H90) -> 0 | I91: =I90 -> 0 | J91: + | K91: 0 | M91: =M90 -> -37.5 | N91: -37.3 | O91: =((P91-INT(P91))*5/3)+INT(P91) -> 0 | P91: =((P90-INT(P90))*3/5)+INT(P90)+E91 -> 0 | Q91: =((Q90-ROUNDDOWN(Q90,0))/5*3)+ROUNDDOWN(Q90,0) -> 0 | S91: =SUM(S84:S90) -> 0 | T91: 0 | U91: 0 | V91: 0 | X91: =SUM(X84:X90) -> 0 | Y91: =SUM(Y84:Y90)+IF(Interface!$P$11=O85,IF(Q84<O84,IF(Q84+Q85>(O84-O86),Q84+Q85-O84,0),Q85)) -> 0
B92: =B90+1 -> 2023-03-20 | G92: =D92-C92+F92-E92 -> 00:00:00 | H92: =(G92-INT(G92))*24 -> 0 | I92: =IF(H92>0,H92-Interface!$G$9,0) -> 0 | J92: + | K92: 0 | M92: =IF(H92>0,H92-Interface!$G$9,$M$2-Interface!$G$9) -> -7.5 | N92: -7.3 | O92: =Interface!$S$9 -> 4 | P92: Report | Q92: =O91 -> 0 | Z92: =IF(S92>0,1,IF(T92>0,2,IF(U92>0,3,IF(V92>0,4,IF(W92>0,W92,IF(X92>0,7,"")))))) -> 
B93: =B92+1 -> 2023-03-21 | G93: 00:00:00 | H93: 0 | I93: =IF(H93>0,H93-Interface!$G$10+I92,0+I92) -> 0 | J93: + | K93: 0 | M93: =IF(H93>0,H93-Interface!$G$10+M92,$M$2-Interface!$G$10+M92) -> -15 | N93: -15 | O93: =Interface!$S$11 -> 1 | P93: En Plus | Q93: =IF(M98>0,M98,0) -> 0 | Z93: =IF(S93>0,1,IF(T93>0,2,IF(U93>0,3,IF(V93>0,4,IF(W93>0,W93,IF(X93>0,7,"")))))) -> 
B94: 2023-03-22 | G94: 00:00:00 | H94: 0 | I94: =IF(H94>0,H94-Interface!$G$11+I93,0+I93) -> 0 | J94: + | K94: 0 | M94: =IF(H94>0,H94-Interface!$G$11+M93,$M$2-Interface!$G$11+M93) -> -22.5 | N94: -22.3 | O94: 0.01 | P94: Retenue + | Q94: =IF(Q93 > O97,O93,Q93) -> 0
B95: 2023-03-23 | G95: 00:00:00 | H95: 0 | I95: =IF(H95>0,H95-Interface!$G$12+I94,0+I94) -> 0 | J95: + | K95: 0 | M95: =IF(H95>0,H95-Interface!$G$12+M94,$M$2-Interface!$G$12+M94) -> -30 | N95: -30 | O95: =IF(Q95<0,-Q95,Q95) -> 0 | P95: En Moins | Q95: =IF(M98<-($Q$3-O94),0,IF(M98<0,M98,0)) -> 0
B96: 2023-03-24 | G96: 00:00:00 | H96: 0 | I96: =IF(H96>0,H96-Interface!$G$13+I95,0+I95) -> 0 | J96: + | K96: 0 | M96: =IF(H96>0,H96-Interface!$G$13+M95,$M$2-Interface!$G$13+M95) -> -37.5 | N96: -37.3 | O96: =SUM(O93-O94) -> 0.99 | P96: Retenue - | Q96: =IF(Q95=-Q91,0,IF(Q95>=0,0,IF(Q95>-O96,IF(Q92<O93,IF(Q95>-O96,IF(Q92=O95,Q95,IF(O95>Q92,IF((Q92-O93)<Q95,IF(O95>Q92,-Q92,Q92+Q95),-Q92),Q95)),Q95),Q95),IF(Q92<O93,IF(Q95>=-O96,44,Q92+Q95),-O93)))) -> 0
B97: 2023-03-25 | G97: 00:00:00 | H97: 0 | I97: =IF(H97>0,H97-Interface!$G$14+I96,0+I96) -> 0 | J97: + | K97: 0 | M97: =IF(H97>0,H97-Interface!$G$14+M96,$M$2-Interface!$G$14+M96) -> -37.5 | N97: -37.3 | O97: =SUM(O93+O94) -> 1.01 | P97: =IF(M98=0,Q92, IF(M98=-$Q$3,Q92,IF(Q92+Q94>O92,0,IF(Q92<O93,IF(Q94>0,Q92+Q96+Q94,Q92-O95),0)))) -> 0 | Q97: =IF(M98=-$Q$3,0,IF(Q92+Q94>O92,O92,IF(Q92>=O93,IF(Q96<=-O94,Q92+Q96,Q92+Q94),0))) -> 0
B98: 2023-03-26 | G98: 00:00:00 | H98: 0 | I98: =IF(H98>0,H98-Interface!$G$15+I97,0+I97) -> 0 | J98: + | K98: 0 | M98: =IF(H98>0,H98-Interface!$G$15+M97,$M$2-Interface!$G$15+M97) -> -37.5 | N98: -37.3 | P98: =IF(M98=0,Q92,IF((P97+Q97)<=0,0,P97+Q97)) -> 0 | Q98: =IF(M98=-$Q$3,0,IF(M98<-O94,IF(Q92>-O96,IF(Q92<O93,IF(Q95<-O96,Q96,IF(Q92=0,Q95,IF(Q92=O95,Q92+Q95,Q95-Q96))),IF(Q95<=-O93,Q95-Q96,IF((Q92-Q96)>0,0,41))),0),0)) -> 0
C99: Ajustement Compteur | E99: 0 | F99: =F91+1 -> 12 | G99: =G92+G93+G94+G95+G96+G97+G98 -> 0 | H99: =SUM(H92:H98) -> 0 | I99: =I98 -> 0 | J99: + | K99: 0 | M99: -37.5 | N99: -37.3 | O99: =((P99-INT(P99))*5/3)+INT(P99) -> 0 | P99: =((P98-INT(P98))*3/5)+INT(P98)+E99 -> 0 | Q99: =((Q98-ROUNDDOWN(Q98,0))/5*3)+ROUNDDOWN(Q98,0) -> 0 | S99: =SUM(S92:S98) -> 0 | T99: 0 | U99: 0 | V99: 0 | X99: =SUM(X92:X98) -> 0 | Y99: =SUM(Y92:Y98)+IF(Interface!$P$11=O93,IF(Q92<O92,IF(Q92+Q93>(O92-O94),Q92+Q93-O92,0),Q93)) -> 0
B100: =B98+1 -> 2023-03-27 | G100: =D100-C100+F100-E100 -> 00:00:00 | H100: =(G100-INT(G100))*24 -> 0 | I100: =IF(H100>0,H100-Interface!$G$9,0) -> 0 | J100: + | K100: 0 | M100: =IF(H100>0,H100-Interface!$G$9,$M$2-Interface!$G$9) -> -7.5 | N100: -7.3 | O100: =Interface!$S$9 -> 4 | P100: Report | Q100: =O99 -> 0 | Z100: =IF(S100>0,1,IF(T100>0,2,IF(U100>0,3,IF(V100>0,4,IF(W100>0,W100,IF(X100>0,7,"")))))) -> 
B101: =B100+1 -> 2023-03-28 | G101: 00:00:00 | H101: 0 | I101: =IF(H101>0,H101-Interface!$G$10+I100,0+I100) -> 0 | J101: + | K101: 0 | M101: =IF(H101>0,H101-Interface!$G$10+M100,$M$2-Interface!$G$10+M100) -> -15 | N101: -15 | O101: =Interface!$S$11 -> 1 | P101: En Plus | Q101: =IF(M106>0,M106,0) -> 0 | Z101: =IF(S101>0,1,IF(T101>0,2,IF(U101>0,3,IF(V101>0,4,IF(W101>0,W101,IF(X101>0,7,"")))))) -> 
B102: 2023-03-29 | G102: 00:00:00 | H102: 0 | I102: =IF(H102>0,H102-Interface!$G$11+I101,0+I101) -> 0 | J102: + | K102: 0 | M102: =IF(H102>0,H102-Interface!$G$11+M101,$M$2-Interface!$G$11+M101) -> -22.5 | N102: -22.3 | O102: 0.01 | P102: Retenue + | Q102: =IF(Q101 > O105,O101,Q101) -> 0
B103: 2023-03-30 | G103: 00:00:00 | H103: 0 | I103: =IF(H103>0,H103-Interface!$G$12+I102,0+I102) -> 0 | J103: + | K103: 0 | M103: =IF(H103>0,H103-Interface!$G$12+M102,$M$2-Interface!$G$12+M102) -> -30 | N103: -30 | O103: =IF(Q103<0,-Q103,Q103) -> 0 | P103: En Moins | Q103: =IF(M106<-($Q$3-O102),0,IF(M106<0,M106,0)) -> 0
B104: 2023-03-31 | G104: 00:00:00 | H104: 0 | I104: =IF(H104>0,H104-Interface!$G$13+I103,0+I103) -> 0 | J104: + | K104: 0 | M104: =IF(H104>0,H104-Interface!$G$13+M103,$M$2-Interface!$G$13+M103) -> -37.5 | N104: -37.3 | O104: =SUM(O101-O102) -> 0.99 | P104: Retenue - | Q104: =IF(Q103=-Q99,0,IF(Q103>=0,0,IF(Q103>-O104,IF(Q100<O101,IF(Q103>-O104,IF(Q100=O103,Q103,IF(O103>Q100,IF((Q100-O101)<Q103,IF(O103>Q100,-Q100,Q100+Q103),-Q100),Q103)),Q103),Q103),IF(Q100<O101,IF(Q103>=-O104,44,Q100+Q103),-O101)))) -> 0
B105: 2023-04-01 | G105: 00:00:00 | H105: 0 | I105: =IF(H105>0,H105-Interface!$G$14+I104,0+I104) -> 0 | J105: + | K105: 0 | M105: =IF(H105>0,H105-Interface!$G$14+M104,$M$2-Interface!$G$14+M104) -> -37.5 | N105: -37.3 | O105: =SUM(O101+O102) -> 1.01 | P105: =IF(M106=0,Q100, IF(M106=-$Q$3,Q100,IF(Q100+Q102>O100,0,IF(Q100<O101,IF(Q102>0,Q100+Q104+Q102,Q100-O103),0)))) -> 0 | Q105: =IF(M106=-$Q$3,0,IF(Q100+Q102>O100,O100,IF(Q100>=O101,IF(Q104<=-O102,Q100+Q104,Q100+Q102),0))) -> 0
B106: 2023-04-02 | G106: 00:00:00 | H106: 0 | I106: =IF(H106>0,H106-Interface!$G$15+I105,0+I105) -> 0 | J106: + | K106: 0 | M106: =IF(H106>0,H106-Interface!$G$15+M105,$M$2-Interface!$G$15+M105) -> -37.5 | N106: -37.3 | P106: =IF(M106=0,Q100,IF((P105+Q105)<=0,0,P105+Q105)) -> 0 | Q106: =IF(M106=-$Q$3,0,IF(M106<-O102,IF(Q100>-O104,IF(Q100<O101,IF(Q103<-O104,Q104,IF(Q100=0,Q103,IF(Q100=O103,Q100+Q103,Q103-Q104))),IF(Q103<=-O101,Q103-Q104,IF((Q100-Q104)>0,0,41))),0),0)) -> 0
B107: Mars | C107: Ajustement Compteur | E107: 0 | F107: =F99+1 -> 13 | G107: =G100+G101+G102+G103+G104+G105+G106 -> 0 | H107: =SUM(H100:H106) -> 0 | I107: =I106 -> 0 | J107: + | K107: 0 | M107: -37.5 | N107: -37.3 | O107: =((P107-INT(P107))*5/3)+INT(P107) -> 0 | P107: =((P106-INT(P106))*3/5)+INT(P106)+E107 -> 0 | Q107: =((Q106-ROUNDDOWN(Q106,0))/5*3)+ROUNDDOWN(Q106,0) -> 0 | S107: =SUM(S100:S106)+S83+S91+S99 -> 0 | T107: =SUM(T100:T106)+T83+T91+T99 -> 0 | U107: 0 | V107: 0 | X107: =SUM(X100:X106)+X83+X91+X99 -> 0 | Y107: =(SUM(Y100:Y106)+Y99+Y91+Y83)+IF(Interface!$Q$12=1,IF(Q100<O92,IF(Q100+Q101>(O92-O94),Q100+Q101-O100,0),Q101)) -> 0
B108: =B106+1 -> 2023-04-03 | G108: =D108-C108+F108-E108 -> 00:00:00 | H108: =(G108-INT(G108))*24 -> 0 | I108: =IF(H108>0,H108-Interface!$G$9,0) -> 0 | J108: + | K108: 0 | M108: =IF(H108>0,H108-Interface!$G$9,$M$2-Interface!$G$9) -> -7.5 | N108: -7.3 | O108: =Interface!$S$9 -> 4 | P108: Report | Q108: =O107 -> 0 | Z108: =IF(S108>0,1,IF(T108>0,2,IF(U108>0,3,IF(V108>0,4,IF(W108>0,W108,IF(X108>0,7,"")))))) -> 
B109: =B108+1 -> 2023-04-04 | G109: 00:00:00 | H109: 0 | I109: =IF(H109>0,H109-Interface!$G$10+I108,0+I108) -> 0 | J109: + | K109: 0 | M109: =IF(H109>0,H109-Interface!$G$10+M108,$M$2-Interface!$G$10+M108) -> -15 | N109: -15 | O109: =Interface!$S$11 -> 1 | P109: En Plus | Q109: =IF(M114>0,M114,0) -> 0 | Z109: =IF(S109>0,1,IF(T109>0,2,IF(U109>0,3,IF(V109>0,4,IF(W109>0,W109,IF(X109>0,7,"")))))) -> 
B110: 2023-04-05 | G110: 00:00:00 | H110: 0 | I110: =IF(H110>0,H110-Interface!$G$11+I109,0+I109) -> 0 | J110: + | K110: 0 | M110: =IF(H110>0,H110-Interface!$G$11+M109,$M$2-Interface!$G$11+M109) -> -22.5 | N110: -22.3 | O110: 0.01 | P110: Retenue + | Q110: =IF(Q109 > O113,O109,Q109) -> 0
B111: 2023-04-06 | G111: 00:00:00 | H111: 0 | I111: =IF(H111>0,H111-Interface!$G$12+I110,0+I110) -> 0 | J111: + | K111: 0 | M111: =IF(H111>0,H111-Interface!$G$12+M110,$M$2-Interface!$G$12+M110) -> -30 | N111: -30 | O111: =IF(Q111<0,-Q111,Q111) -> 0 | P111: En Moins | Q111: =IF(M114<-($Q$3-O110),0,IF(M114<0,M114,0)) -> 0
B112: 2023-04-07 | G112: 00:00:00 | H112: 0 | I112: =IF(H112>0,H112-Interface!$G$13+I111,0+I111) -> 0 | J112: + | K112: 0 | M112: =IF(H112>0,H112-Interface!$G$13+M111,$M$2-Interface!$G$13+M111) -> -37.5 | N112: -37.3 | O112: =SUM(O109-O110) -> 0.99 | P112: Retenue - | Q112: =IF(Q111=-Q107,0,IF(Q111>=0,0,IF(Q111>-O112,IF(Q108<O109,IF(Q111>-O112,IF(Q108=O111,Q111,IF(O111>Q108,IF((Q108-O109)<Q111,IF(O111>Q108,-Q108,Q108+Q111),-Q108),Q111)),Q111),Q111),IF(Q108<O109,IF(Q111>=-O112,44,Q108+Q111),-O109)))) -> 0
B113: 2023-04-08 | G113: 00:00:00 | H113: 0 | I113: =IF(H113>0,H113-Interface!$G$14+I112,0+I112) -> 0 | J113: + | K113: 0 | M113: =IF(H113>0,H113-Interface!$G$14+M112,$M$2-Interface!$G$14+M112) -> -37.5 | N113: -37.3 | O113: =SUM(O109+O110) -> 1.01 | P113: =IF(M114=0,Q108, IF(M114=-$Q$3,Q108,IF(Q108+Q110>O108,0,IF(Q108<O109,IF(Q110>0,Q108+Q112+Q110,Q108-O111),0)))) -> 0 | Q113: =IF(M114=-$Q$3,0,IF(Q108+Q110>O108,O108,IF(Q108>=O109,IF(Q112<=-O110,Q108+Q112,Q108+Q110),0))) -> 0
B114: 2023-04-09 | G114: 00:00:00 | H114: 0 | I114: =IF(H114>0,H114-Interface!$G$15+I113,0+I113) -> 0 | J114: + | K114: 0 | M114: =IF(H114>0,H114-Interface!$G$15+M113,$M$2-Interface!$G$15+M113) -> -37.5 | N114: -37.3 | P114: =IF(M114=0,Q108,IF((P113+Q113)<=0,0,P113+Q113)) -> 0 | Q114: =IF(M114=-$Q$3,0,IF(M114<-O110,IF(Q108>-O112,IF(Q108<O109,IF(Q111<-O112,Q112,IF(Q108=0,Q111,IF(Q108=O111,Q108+Q111,Q111-Q112))),IF(Q111<=-O109,Q111-Q112,IF((Q108-Q112)>0,0,41))),0),0)) -> 0
C115: Ajustement Compteur | E115: 0 | F115: =F107+1 -> 14 | G115: =G108+G109+G110+G111+G112+G113+G114 -> 0 | H115: =SUM(H108:H114) -> 0 | I115: =I114 -> 0 | J115: + | K115: 0 | M115: -37.5 | N115: -37.3 | O115: =((P115-INT(P115))*5/3)+INT(P115) -> 0 | P115: =((P114-INT(P114))*3/5)+INT(P114)+E115 -> 0 | Q115: =((Q114-ROUNDDOWN(Q114,0))/5*3)+ROUNDDOWN(Q114,0) -> 0 | S115: =SUM(S108:S114) -> 0 | T115: 0 | U115: 0 | V115: 0 | X115: =SUM(X108:X114) -> 0 | Y115: =SUM(Y108:Y114)+IF(Interface!$P$11=O109,IF(Q108<O108,IF(Q108+Q109>(O108-O110),Q108+Q109-O108,0),Q109)) -> 0
B116: =B114+1 -> 2023-04-10 | G116: 00:00:00 | H116: =(G116-INT(G116))*24 -> 0 | I116: =IF(H116>0,H116-Interface!$G$9,0) -> 0 | J116: + | K116: 0 | M116: =IF(H116>0,H116-Interface!$G$9,$M$2-Interface!$G$9) -> -7.5 | N116: -7.3 | O116: =Interface!$S$9 -> 4 | P116: Report | Q116: =O115 -> 0 | Z116: =IF(S116>0,1,IF(T116>0,2,IF(U116>0,3,IF(V116>0,4,IF(W116>0,W116,IF(X116>0,7,"")))))) -> 
B117: =B116+1 -> 2023-04-11 | G117: 00:00:00 | H117: 0 | I117: =IF(H117>0,H117-Interface!$G$10+I116,0+I116) -> 0 | J117: + | K117: 0 | M117: =IF(H117>0,H117-Interface!$G$10+M116,$M$2-Interface!$G$10+M116) -> -15 | N117: -15 | O117: =Interface!$S$11 -> 1 | P117: En Plus | Q117: =IF(M122>0,M122,0) -> 0 | Z117: =IF(S117>0,1,IF(T117>0,2,IF(U117>0,3,IF(V117>0,4,IF(W117>0,W117,IF(X117>0,7,"")))))) -> 
B118: 2023-04-12 | G118: 00:00:00 | H118: 0 | I118: =IF(H118>0,H118-Interface!$G$11+I117,0+I117) -> 0 | J118: + | K118: 0 | M118: =IF(H118>0,H118-Interface!$G$11+M117,$M$2-Interface!$G$11+M117) -> -22.5 | N118: -22.3 | O118: 0.01 | P118: Retenue + | Q118: =IF(Q117 > O121,O117,Q117) -> 0
B119: 2023-04-13 | G119: 00:00:00 | H119: 0 | I119: =IF(H119>0,H119-Interface!$G$12+I118,0+I118) -> 0 | J119: + | K119: 0 | M119: =IF(H119>0,H119-Interface!$G$12+M118,$M$2-Interface!$G$12+M118) -> -30 | N119: -30 | O119: =IF(Q119<0,-Q119,Q119) -> 0 | P119: En Moins | Q119: =IF(M122<-($Q$3-O118),0,IF(M122<0,M122,0)) -> 0
B120: 2023-04-14 | G120: 00:00:00 | H120: 0 | I120: =IF(H120>0,H120-Interface!$G$13+I119,0+I119) -> 0 | J120: + | K120: 0 | M120: =IF(H120>0,H120-Interface!$G$13+M119,$M$2-Interface!$G$13+M119) -> -37.5 | N120: -37.3 | O120: =SUM(O117-O118) -> 0.99 | P120: Retenue - | Q120: =IF(Q119=-Q115,0,IF(Q119>=0,0,IF(Q119>-O120,IF(Q116<O117,IF(Q119>-O120,IF(Q116=O119,Q119,IF(O119>Q116,IF((Q116-O117)<Q119,IF(O119>Q116,-Q116,Q116+Q119),-Q116),Q119)),Q119),Q119),IF(Q116<O117,IF(Q119>=-O120,44,Q116+Q119),-O117)))) -> 0
B121: 2023-04-15 | G121: 00:00:00 | H121: 0 | I121: =IF(H121>0,H121-Interface!$G$14+I120,0+I120) -> 0 | J121: + | K121: 0 | M121: =IF(H121>0,H121-Interface!$G$14+M120,$M$2-Interface!$G$14+M120) -> -37.5 | N121: -37.3 | O121: =SUM(O117+O118) -> 1.01 | P121: =IF(M122=0,Q116, IF(M122=-$Q$3,Q116,IF(Q116+Q118>O116,0,IF(Q116<O117,IF(Q118>0,Q116+Q120+Q118,Q116-O119),0)))) -> 0 | Q121: =IF(M122=-$Q$3,0,IF(Q116+Q118>O116,O116,IF(Q116>=O117,IF(Q120<=-O118,Q116+Q120,Q116+Q118),0))) -> 0
B122: 2023-04-16 | G122: 00:00:00 | H122: 0 | I122: =IF(H122>0,H122-Interface!$G$15+I121,0+I121) -> 0 | J122: + | K122: 0 | M122: =IF(H122>0,H122-Interface!$G$15+M121,$M$2-Interface!$G$15+M121) -> -37.5 | N122: -37.3 | P122: =IF(M122=0,Q116,IF((P121+Q121)<=0,0,P121+Q121)) -> 0 | Q122: =IF(M122=-$Q$3,0,IF(M122<-O118,IF(Q116>-O120,IF(Q116<O117,IF(Q119<-O120,Q120,IF(Q116=0,Q119,IF(Q116=O119,Q116+Q119,Q119-Q120))),IF(Q119<=-O117,Q119-Q120,IF((Q116-Q120)>0,0,41))),0),0)) -> 0
C123: Ajustement Compteur | E123: 0 | F123: =F115+1 -> 15 | G123: =G116+G117+G118+G119+G120+G121+G122 -> 0 | H123: =SUM(H116:H122) -> 0 | I123: =I122 -> 0 | J123: + | K123: 0 | M123: -37.5 | N123: -37.3 | O123: =((P123-INT(P123))*5/3)+INT(P123) -> 0 | P123: =((P122-INT(P122))*3/5)+INT(P122)+E123 -> 0 | Q123: =((Q122-ROUNDDOWN(Q122,0))/5*3)+ROUNDDOWN(Q122,0) -> 0 | S123: =SUM(S116:S122) -> 0 | T123: 0 | U123: 0 | V123: 0 | X123: =SUM(X116:X122) -> 0 | Y123: =SUM(Y116:Y122)+IF(Interface!$P$11=O117,IF(Q116<O116,IF(Q116+Q117>(O116-O118),Q116+Q117-O116,0),Q117)) -> 0
B124: =B122+1 -> 2023-04-17 | G124: =D124-C124+F124-E124 -> 00:00:00 | H124: =(G124-INT(G124))*24 -> 0 | I124: =IF(H124>0,H124-Interface!$G$9,0) -> 0 | J124: + | K124: 0 | M124: =IF(H124>0,H124-Interface!$G$9,$M$2-Interface!$G$9) -> -7.5 | N124: -7.3 | O124: =Interface!$S$9 -> 4 | P124: Report | Q124: =O123 -> 0 | Z124: =IF(S124>0,1,IF(T124>0,2,IF(U124>0,3,IF(V124>0,4,IF(W124>0,W124,IF(X124>0,7,"")))))) -> 
B125: =B124+1 -> 2023-04-18 | G125: 00:00:00 | H125: 0 | I125: =IF(H125>0,H125-Interface!$G$10+I124,0+I124) -> 0 | J125: + | K125: 0 | M125: =IF(H125>0,H125-Interface!$G$10+M124,$M$2-Interface!$G$10+M124) -> -15 | N125: -15 | O125: =Interface!$S$11 -> 1 | P125: En Plus | Q125: =IF(M130>0,M130,0) -> 0 | Z125: =IF(S125>0,1,IF(T125>0,2,IF(U125>0,3,IF(V125>0,4,IF(W125>0,W125,IF(X125>0,7,"")))))) -> 
B126: 2023-04-19 | G126: 00:00:00 | H126: 0 | I126: =IF(H126>0,H126-Interface!$G$11+I125,0+I125) -> 0 | J126: + | K126: 0 | M126: =IF(H126>0,H126-Interface!$G$11+M125,$M$2-Interface!$G$11+M125) -> -22.5 | N126: -22.3 | O126: 0.01 | P126: Retenue + | Q126: =IF(Q125 > O129,O125,Q125) -> 0
B127: 2023-04-20 | G127: 00:00:00 | H127: 0 | I127: =IF(H127>0,H127-Interface!$G$12+I126,0+I126) -> 0 | J127: + | K127: 0 | M127: =IF(H127>0,H127-Interface!$G$12+M126,$M$2-Interface!$G$12+M126) -> -30 | N127: -30 | O127: =IF(Q127<0,-Q127,Q127) -> 0 | P127: En Moins | Q127: =IF(M130<-($Q$3-O126),0,IF(M130<0,M130,0)) -> 0
B128: 2023-04-21 | G128: 00:00:00 | H128: 0 | I128: =IF(H128>0,H128-Interface!$G$13+I127,0+I127) -> 0 | J128: + | K128: 0 | M128: =IF(H128>0,H128-Interface!$G$13+M127,$M$2-Interface!$G$13+M127) -> -37.5 | N128: -37.3 | O128: =SUM(O125-O126) -> 0.99 | P128: Retenue - | Q128: =IF(Q127=-Q123,0,IF(Q127>=0,0,IF(Q127>-O128,IF(Q124<O125,IF(Q127>-O128,IF(Q124=O127,Q127,IF(O127>Q124,IF((Q124-O125)<Q127,IF(O127>Q124,-Q124,Q124+Q127),-Q124),Q127)),Q127),Q127),IF(Q124<O125,IF(Q127>=-O128,44,Q124+Q127),-O125)))) -> 0
B129: 2023-04-22 | G129: 00:00:00 | H129: 0 | I129: =IF(H129>0,H129-Interface!$G$14+I128,0+I128) -> 0 | J129: + | K129: 0 | M129: =IF(H129>0,H129-Interface!$G$14+M128,$M$2-Interface!$G$14+M128) -> -37.5 | N129: -37.3 | O129: =SUM(O125+O126) -> 1.01 | P129: =IF(M130=0,Q124, IF(M130=-$Q$3,Q124,IF(Q124+Q126>O124,0,IF(Q124<O125,IF(Q126>0,Q124+Q128+Q126,Q124-O127),0)))) -> 0 | Q129: =IF(M130=-$Q$3,0,IF(Q124+Q126>O124,O124,IF(Q124>=O125,IF(Q128<=-O126,Q124+Q128,Q124+Q126),0))) -> 0
B130: 2023-04-23 | G130: 00:00:00 | H130: 0 | I130: =IF(H130>0,H130-Interface!$G$15+I129,0+I129) -> 0 | J130: + | K130: 0 | M130: =IF(H130>0,H130-Interface!$G$15+M129,$M$2-Interface!$G$15+M129) -> -37.5 | N130: -37.3 | P130: =IF(M130=0,Q124,IF((P129+Q129)<=0,0,P129+Q129)) -> 0 | Q130: =IF(M130=-$Q$3,0,IF(M130<-O126,IF(Q124>-O128,IF(Q124<O125,IF(Q127<-O128,Q128,IF(Q124=0,Q127,IF(Q124=O127,Q124+Q127,Q127-Q128))),IF(Q127<=-O125,Q127-Q128,IF((Q124-Q128)>0,0,41))),0),0)) -> 0
C131: Ajustement Compteur | E131: 0 | F131: =F123+1 -> 16 | G131: =G124+G125+G126+G127+G128+G129+G130 -> 0 | H131: =SUM(H124:H130) -> 0 | I131: =I130 -> 0 | J131: + | K131: 0 | M131: -37.5 | N131: -37.3 | O131: =((P131-INT(P131))*5/3)+INT(P131) -> 0 | P131: =((P130-INT(P130))*3/5)+INT(P130)+E131 -> 0 | Q131: =((Q130-ROUNDDOWN(Q130,0))/5*3)+ROUNDDOWN(Q130,0) -> 0 | S131: =SUM(S124:S130) -> 0 | T131: 0 | U131: 0 | V131: 0 | X131: =SUM(X124:X130) -> 0 | Y131: =SUM(Y124:Y130)+IF(Interface!$P$11=O125,IF(Q124<O124,IF(Q124+Q125>(O124-O126),Q124+Q125-O124,0),Q125)) -> 0
B132: =B130+1 -> 2023-04-24 | G132: =D132-C132+F132-E132 -> 00:00:00 | H132: =(G132-INT(G132))*24 -> 0 | I132: =IF(H132>0,H132-Interface!$G$9,0) -> 0 | J132: + | K132: 0 | M132: =IF(H132>0,H132-Interface!$G$9,$M$2-Interface!$G$9) -> -7.5 | N132: =((M132-ROUNDDOWN(M132,0))/5*3)+ROUNDDOWN(M132,0) -> -7.3 | O132: =Interface!$S$9 -> 4 | P132: Report | Q132: =O131 -> 0 | Z132: =IF(S132>0,1,IF(T132>0,2,IF(U132>0,3,IF(V132>0,4,IF(W132>0,W132,IF(X132>0,7,"")))))) -> 
B133: =B132+1 -> 2023-04-25 | G133: 00:00:00 | H133: 0 | I133: =IF(H133>0,H133-Interface!$G$10+I132,0+I132) -> 0 | J133: + | K133: 0 | M133: =IF(H133>0,H133-Interface!$G$10+M132,$M$2-Interface!$G$10+M132) -> -15 | N133: -15 | O133: =Interface!$S$11 -> 1 | P133: En Plus | Q133: =IF(M138>0,M138,0) -> 0 | Z133: =IF(S133>0,1,IF(T133>0,2,IF(U133>0,3,IF(V133>0,4,IF(W133>0,W133,IF(X133>0,7,"")))))) -> 
B134: 2023-04-26 | G134: 00:00:00 | H134: 0 | I134: =IF(H134>0,H134-Interface!$G$11+I133,0+I133) -> 0 | J134: + | K134: 0 | M134: =IF(H134>0,H134-Interface!$G$11+M133,$M$2-Interface!$G$11+M133) -> -22.5 | N134: -22.3 | O134: 0.01 | P134: Retenue + | Q134: =IF(Q133 > O137,O133,Q133) -> 0
B135: 2023-04-27 | G135: 00:00:00 | H135: 0 | I135: =IF(H135>0,H135-Interface!$G$12+I134,0+I134) -> 0 | J135: + | K135: 0 | M135: =IF(H135>0,H135-Interface!$G$12+M134,$M$2-Interface!$G$12+M134) -> -30 | N135: -30 | O135: =IF(Q135<0,-Q135,Q135) -> 0 | P135: En Moins | Q135: =IF(M138<-($Q$3-O134),0,IF(M138<0,M138,0)) -> 0
B136: 2023-04-28 | G136: 00:00:00 | H136: 0 | I136: =IF(H136>0,H136-Interface!$G$13+I135,0+I135) -> 0 | J136: + | K136: 0 | M136: =IF(H136>0,H136-Interface!$G$13+M135,$M$2-Interface!$G$13+M135) -> -37.5 | N136: -37.3 | O136: =SUM(O133-O134) -> 0.99 | P136: Retenue - | Q136: =IF(Q135=-Q131,0,IF(Q135>=0,0,IF(Q135>-O136,IF(Q132<O133,IF(Q135>-O136,IF(Q132=O135,Q135,IF(O135>Q132,IF((Q132-O133)<Q135,IF(O135>Q132,-Q132,Q132+Q135),-Q132),Q135)),Q135),Q135),IF(Q132<O133,IF(Q135>=-O136,44,Q132+Q135),-O133)))) -> 0
B137: 2023-04-29 | G137: 00:00:00 | H137: 0 | I137: =IF(H137>0,H137-Interface!$G$14+I136,0+I136) -> 0 | J137: + | K137: 0 | M137: =IF(H137>0,H137-Interface!$G$14+M136,$M$2-Interface!$G$14+M136) -> -37.5 | N137: -37.3 | O137: =SUM(O133+O134) -> 1.01 | P137: =IF(M138=0,Q132, IF(M138=-$Q$3,Q132,IF(Q132+Q134>O132,0,IF(Q132<O133,IF(Q134>0,Q132+Q136+Q134,Q132-O135),0)))) -> 0 | Q137: =IF(M138=-$Q$3,0,IF(Q132+Q134>O132,O132,IF(Q132>=O133,IF(Q136<=-O134,Q132+Q136,Q132+Q134),0))) -> 0
B138: 2023-04-30 | G138: 00:00:00 | H138: 0 | I138: =IF(H138>0,H138-Interface!$G$15+I137,0+I137) -> 0 | J138: + | K138: 0 | M138: =IF(H138>0,H138-Interface!$G$15+M137,$M$2-Interface!$G$15+M137) -> -37.5 | N138: -37.3 | P138: =IF(M138=0,Q132,IF((P137+Q137)<=0,0,P137+Q137)) -> 0 | Q138: =IF(M138=-$Q$3,0,IF(M138<-O134,IF(Q132>-O136,IF(Q132<O133,IF(Q135<-O136,Q136,IF(Q132=0,Q135,IF(Q132=O135,Q132+Q135,Q135-Q136))),IF(Q135<=-O133,Q135-Q136,IF((Q132-Q136)>0,0,41))),0),0)) -> 0
B139: Avril | C139: Ajustement Compteur | E139: 0 | F139: =F131+1 -> 17 | G139: =G132+G133+G134+G135+G136+G137+G138 -> 0 | H139: =SUM(H132:H138) -> 0 | I139: =I138 -> 0 | J139: + | K139: 0 | M139: -37.5 | N139: -37.3 | O139: =((P139-INT(P139))*5/3)+INT(P139) -> 0 | P139: =((P138-INT(P138))*3/5)+INT(P138)+E139 -> 0 | Q139: =((Q138-ROUNDDOWN(Q138,0))/5*3)+ROUNDDOWN(Q138,0) -> 0 | S139: =SUM(S132:S138)+S115+S123+S131 -> 0 | T139: =SUM(T132:T138)+T115+T123+T131 -> 0 | U139: 0 | V139: 0 | X139: =SUM(X132:X138)+X115+X123+X131 -> 0 | Y139: =(SUM(Y132:Y138)+Y131+Y123+Y115)+IF(Interface!$Q$12=1,IF(Q132<O124,IF(Q132+Q133>(O124-O126),Q132+Q133-O132,0),Q133)) -> 0
B140: =B138+1 -> 2023-05-01 | G140: =D140-C140+F140-E140 -> 00:00:00 | H140: =(G140-INT(G140))*24 -> 0 | I140: =IF(H140>0,H140-Interface!$G$9,0) -> 0 | J140: =IF(I140>=0,"+","-") -> + | K140: =TIME(TRUNC(ABS(I140)),ROUND((ABS(I140)-TRUNC(ABS(I140)))*60,),0) -> 0 | M140: =IF(H140>0,H140-Interface!$G$9,$M$2-Interface!$G$9) -> -7.5 | N140: -7.3 | O140: =Interface!$S$9 -> 4 | P140: Report | Q140: =O139 -> 0 | Z140: =IF(S140>0,1,IF(T140>0,2,IF(U140>0,3,IF(V140>0,4,IF(W140>0,W140,IF(X140>0,7,"")))))) -> 
B141: =B140+1 -> 2023-05-02 | G141: 00:00:00 | H141: 0 | I141: =IF(H141>0,H141-Interface!$G$10+I140,0+I140) -> 0 | J141: + | K141: 0 | M141: =IF(H141>0,H141-Interface!$G$10+M140,$M$2-Interface!$G$10+M140) -> -15 | N141: -15 | O141: =Interface!$S$11 -> 1 | P141: En Plus | Q141: =IF(M146>0,M146,0) -> 0 | Z141: =IF(S141>0,1,IF(T141>0,2,IF(U141>0,3,IF(V141>0,4,IF(W141>0,W141,IF(X141>0,7,"")))))) -> 
B142: 2023-05-03 | G142: 00:00:00 | H142: 0 | I142: =IF(H142>0,H142-Interface!$G$11+I141,0+I141) -> 0 | J142: + | K142: 0 | M142: =IF(H142>0,H142-Interface!$G$11+M141,$M$2-Interface!$G$11+M141) -> -22.5 | N142: -22.3 | O142: 0.01 | P142: Retenue + | Q142: =IF(Q141 > O145,O141,Q141) -> 0
B143: 2023-05-04 | G143: 00:00:00 | H143: 0 | I143: =IF(H143>0,H143-Interface!$G$12+I142,0+I142) -> 0 | J143: + | K143: 0 | M143: =IF(H143>0,H143-Interface!$G$12+M142,$M$2-Interface!$G$12+M142) -> -30 | N143: -30 | O143: =IF(Q143<0,-Q143,Q143) -> 0 | P143: En Moins | Q143: =IF(M146<-($Q$3-O142),0,IF(M146<0,M146,0)) -> 0
B144: 2023-05-05 | G144: 00:00:00 | H144: 0 | I144: =IF(H144>0,H144-Interface!$G$13+I143,0+I143) -> 0 | J144: + | K144: 0 | M144: =IF(H144>0,H144-Interface!$G$13+M143,$M$2-Interface!$G$13+M143) -> -37.5 | N144: -37.3 | O144: =SUM(O141-O142) -> 0.99 | P144: Retenue - | Q144: =IF(Q143=-Q139,0,IF(Q143>=0,0,IF(Q143>-O144,IF(Q140<O141,IF(Q143>-O144,IF(Q140=O143,Q143,IF(O143>Q140,IF((Q140-O141)<Q143,IF(O143>Q140,-Q140,Q140+Q143),-Q140),Q143)),Q143),Q143),IF(Q140<O141,IF(Q143>=-O144,44,Q140+Q143),-O141)))) -> 0
B145: 2023-05-06 | G145: 00:00:00 | H145: 0 | I145: =IF(H145>0,H145-Interface!$G$14+I144,0+I144) -> 0 | J145: + | K145: 0 | M145: =IF(H145>0,H145-Interface!$G$14+M144,$M$2-Interface!$G$14+M144) -> -37.5 | N145: -37.3 | O145: =SUM(O141+O142) -> 1.01 | P145: =IF(M146=0,Q140, IF(M146=-$Q$3,Q140,IF(Q140+Q142>O140,0,IF(Q140<O141,IF(Q142>0,Q140+Q144+Q142,Q140-O143),0)))) -> 0 | Q145: =IF(M146=-$Q$3,0,IF(Q140+Q142>O140,O140,IF(Q140>=O141,IF(Q144<=-O142,Q140+Q144,Q140+Q142),0))) -> 0
B146: 2023-05-07 | G146: 00:00:00 | H146: 0 | I146: =IF(H146>0,H146-Interface!$G$15+I145,0+I145) -> 0 | J146: + | K146: 0 | M146: =IF(H146>0,H146-Interface!$G$15+M145,$M$2-Interface!$G$15+M145) -> -37.5 | N146: -37.3 | P146: =IF(M146=0,Q140,IF((P145+Q145)<=0,0,P145+Q145)) -> 0 | Q146: =IF(M146=-$Q$3,0,IF(M146<-O142,IF(Q140>-O144,IF(Q140<O141,IF(Q143<-O144,Q144,IF(Q140=0,Q143,IF(Q140=O143,Q140+Q143,Q143-Q144))),IF(Q143<=-O141,Q143-Q144,IF((Q140-Q144)>0,0,41))),0),0)) -> 0
C147: Ajustement Compteur | E147: 0 | F147: =F139+1 -> 18 | G147: =G140+G141+G142+G143+G144+G145+G146 -> 0 | H147: =SUM(H140:H146) -> 0 | I147: =I146 -> 0 | J147: + | K147: 0 | M147: -37.5 | N147: -37.3 | O147: =((P147-INT(P147))*5/3)+INT(P147) -> 0 | P147: =((P146-INT(P146))*3/5)+INT(P146)+E147 -> 0 | Q147: =((Q146-ROUNDDOWN(Q146,0))/5*3)+ROUNDDOWN(Q146,0) -> 0 | S147: =SUM(S140:S146) -> 0 | T147: 0 | U147: 0 | V147: 0 | X147: =SUM(X140:X146) -> 0 | Y147: =SUM(Y140:Y146)+IF(Interface!$P$11=O141,IF(Q140<O140,IF(Q140+Q141>(O140-O142),Q140+Q141-O140,0),Q141)) -> 0
B148: =B146+1 -> 2023-05-08 | G148: =D148-C148+F148-E148 -> 00:00:00 | H148: =(G148-INT(G148))*24 -> 0 | I148: =IF(H148>0,H148-Interface!$G$9,0) -> 0 | J148: + | K148: 0 | M148: =IF(H148>0,H148-Interface!$G$9,$M$2-Interface!$G$9) -> -7.5 | N148: -7.3 | O148: =Interface!$S$9 -> 4 | P148: Report | Q148: =O147 -> 0 | Z148: =IF(S148>0,1,IF(T148>0,2,IF(U148>0,3,IF(V148>0,4,IF(W148>0,W148,IF(X148>0,7,"")))))) -> 
B149: =B148+1 -> 2023-05-09 | G149: 00:00:00 | H149: 0 | I149: =IF(H149>0,H149-Interface!$G$10+I148,0+I148) -> 0 | J149: + | K149: 0 | M149: =IF(H149>0,H149-Interface!$G$10+M148,$M$2-Interface!$G$10+M148) -> -15 | N149: -15 | O149: =Interface!$S$11 -> 1 | P149: En Plus | Q149: =IF(M154>0,M154,0) -> 0 | Z149: =IF(S149>0,1,IF(T149>0,2,IF(U149>0,3,IF(V149>0,4,IF(W149>0,W149,IF(X149>0,7,"")))))) -> 
B150: 2023-05-10 | G150: 00:00:00 | H150: 0 | I150: =IF(H150>0,H150-Interface!$G$11+I149,0+I149) -> 0 | J150: + | K150: 0 | M150: =IF(H150>0,H150-Interface!$G$11+M149,$M$2-Interface!$G$11+M149) -> -22.5 | N150: -22.3 | O150: 0.01 | P150: Retenue + | Q150: =IF(Q149 > O153,O149,Q149) -> 0
B151: 2023-05-11 | G151: 00:00:00 | H151: 0 | I151: =IF(H151>0,H151-Interface!$G$12+I150,0+I150) -> 0 | J151: + | K151: 0 | M151: =IF(H151>0,H151-Interface!$G$12+M150,$M$2-Interface!$G$12+M150) -> -30 | N151: -30 | O151: =IF(Q151<0,-Q151,Q151) -> 0 | P151: En Moins | Q151: =IF(M154<-($Q$3-O150),0,IF(M154<0,M154,0)) -> 0
B152: 2023-05-12 | G152: 00:00:00 | H152: 0 | I152: =IF(H152>0,H152-Interface!$G$13+I151,0+I151) -> 0 | J152: + | K152: 0 | M152: =IF(H152>0,H152-Interface!$G$13+M151,$M$2-Interface!$G$13+M151) -> -37.5 | N152: -37.3 | O152: =SUM(O149-O150) -> 0.99 | P152: Retenue - | Q152: =IF(Q151=-Q147,0,IF(Q151>=0,0,IF(Q151>-O152,IF(Q148<O149,IF(Q151>-O152,IF(Q148=O151,Q151,IF(O151>Q148,IF((Q148-O149)<Q151,IF(O151>Q148,-Q148,Q148+Q151),-Q148),Q151)),Q151),Q151),IF(Q148<O149,IF(Q151>=-O152,44,Q148+Q151),-O149)))) -> 0
B153: 2023-05-13 | G153: 00:00:00 | H153: 0 | I153: =IF(H153>0,H153-Interface!$G$14+I152,0+I152) -> 0 | J153: + | K153: 0 | M153: =IF(H153>0,H153-Interface!$G$14+M152,$M$2-Interface!$G$14+M152) -> -37.5 | N153: -37.3 | O153: =SUM(O149+O150) -> 1.01 | P153: =IF(M154=0,Q148, IF(M154=-$Q$3,Q148,IF(Q148+Q150>O148,0,IF(Q148<O149,IF(Q150>0,Q148+Q152+Q150,Q148-O151),0)))) -> 0 | Q153: =IF(M154=-$Q$3,0,IF(Q148+Q150>O148,O148,IF(Q148>=O149,IF(Q152<=-O150,Q148+Q152,Q148+Q150),0))) -> 0
B154: 2023-05-14 | G154: 00:00:00 | H154: 0 | I154: =IF(H154>0,H154-Interface!$G$15+I153,0+I153) -> 0 | J154: + | K154: 0 | M154: =IF(H154>0,H154-Interface!$G$15+M153,$M$2-Interface!$G$15+M153) -> -37.5 | N154: -37.3 | P154: =IF(M154=0,Q148,IF((P153+Q153)<=0,0,P153+Q153)) -> 0 | Q154: =IF(M154=-$Q$3,0,IF(M154<-O150,IF(Q148>-O152,IF(Q148<O149,IF(Q151<-O152,Q152,IF(Q148=0,Q151,IF(Q148=O151,Q148+Q151,Q151-Q152))),IF(Q151<=-O149,Q151-Q152,IF((Q148-Q152)>0,0,41))),0),0)) -> 0
C155: Ajustement Compteur | E155: 0 | F155: =F147+1 -> 19 | G155: =G148+G149+G150+G151+G152+G153+G154 -> 0 | H155: =SUM(H148:H154) -> 0 | I155: =I154 -> 0 | J155: + | K155: 0 | M155: =M154 -> -37.5 | N155: -37.3 | O155: =((P155-INT(P155))*5/3)+INT(P155) -> 0 | P155: =((P154-INT(P154))*3/5)+INT(P154)+E155 -> 0 | Q155: =((Q154-ROUNDDOWN(Q154,0))/5*3)+ROUNDDOWN(Q154,0) -> 0 | S155: =SUM(S148:S154) -> 0 | T155: 0 | U155: 0 | V155: 0 | X155: =SUM(X148:X154) -> 0 | Y155: =SUM(Y148:Y154)+IF(Interface!$P$11=O149,IF(Q148<O148,IF(Q148+Q149>(O148-O150),Q148+Q149-O148,0),Q149)) -> 0
B156: =B154+1 -> 2023-05-15 | G156: =D156-C156+F156-E156 -> 00:00:00 | H156: =(G156-INT(G156))*24 -> 0 | I156: =IF(H156>0,H156-Interface!$G$9,0) -> 0 | J156: + | K156: 0 | M156: =IF(H156>0,H156-Interface!$G$9,$M$2-Interface!$G$9) -> -7.5 | N156: -7.3 | O156: =Interface!$S$9 -> 4 | P156: Report | Q156: =O155 -> 0 | Z156: =IF(S156>0,1,IF(T156>0,2,IF(U156>0,3,IF(V156>0,4,IF(W156>0,W156,IF(X156>0,7,"")))))) -> 
B157: =B156+1 -> 2023-05-16 | G157: 00:00:00 | H157: 0 | I157: =IF(H157>0,H157-Interface!$G$10+I156,0+I156) -> 0 | J157: + | K157: 0 | M157: =IF(H157>0,H157-Interface!$G$10+M156,$M$2-Interface!$G$10+M156) -> -15 | N157: -15 | O157: =Interface!$S$11 -> 1 | P157: En Plus | Q157: =IF(M162>0,M162,0) -> 0 | Z157: =IF(S157>0,1,IF(T157>0,2,IF(U157>0,3,IF(V157>0,4,IF(W157>0,W157,IF(X157>0,7,"")))))) -> 
B158: 2023-05-17 | G158: 00:00:00 | H158: 0 | I158: =IF(H158>0,H158-Interface!$G$11+I157,0+I157) -> 0 | J158: + | K158: 0 | M158: =IF(H158>0,H158-Interface!$G$11+M157,$M$2-Interface!$G$11+M157) -> -22.5 | N158: -22.3 | O158: 0.01 | P158: Retenue + | Q158: =IF(Q157 > O161,O157,Q157) -> 0
B159: 2023-05-18 | G159: 00:00:00 | H159: 0 | I159: =IF(H159>0,H159-Interface!$G$12+I158,0+I158) -> 0 | J159: + | K159: 0 | M159: =IF(H159>0,H159-Interface!$G$12+M158,$M$2-Interface!$G$12+M158) -> -30 | N159: -30 | O159: =IF(Q159<0,-Q159,Q159) -> 0 | P159: En Moins | Q159: =IF(M162<-($Q$3-O158),0,IF(M162<0,M162,0)) -> 0
B160: 2023-05-19 | G160: 00:00:00 | H160: 0 | I160: =IF(H160>0,H160-Interface!$G$13+I159,0+I159) -> 0 | J160: + | K160: 0 | M160: =IF(H160>0,H160-Interface!$G$13+M159,$M$2-Interface!$G$13+M159) -> -37.5 | N160: -37.3 | O160: =SUM(O157-O158) -> 0.99 | P160: Retenue - | Q160: =IF(Q159=-Q155,0,IF(Q159>=0,0,IF(Q159>-O160,IF(Q156<O157,IF(Q159>-O160,IF(Q156=O159,Q159,IF(O159>Q156,IF((Q156-O157)<Q159,IF(O159>Q156,-Q156,Q156+Q159),-Q156),Q159)),Q159),Q159),IF(Q156<O157,IF(Q159>=-O160,44,Q156+Q159),-O157)))) -> 0
B161: 2023-05-20 | G161: 00:00:00 | H161: 0 | I161: =IF(H161>0,H161-Interface!$G$14+I160,0+I160) -> 0 | J161: + | K161: 0 | M161: =IF(H161>0,H161-Interface!$G$14+M160,$M$2-Interface!$G$14+M160) -> -37.5 | N161: -37.3 | O161: =SUM(O157+O158) -> 1.01 | P161: =IF(M162=0,Q156, IF(M162=-$Q$3,Q156,IF(Q156+Q158>O156,0,IF(Q156<O157,IF(Q158>0,Q156+Q160+Q158,Q156-O159),0)))) -> 0 | Q161: =IF(M162=-$Q$3,0,IF(Q156+Q158>O156,O156,IF(Q156>=O157,IF(Q160<=-O158,Q156+Q160,Q156+Q158),0))) -> 0
B162: 2023-05-21 | G162: 00:00:00 | H162: 0 | I162: =IF(H162>0,H162-Interface!$G$15+I161,0+I161) -> 0 | J162: + | K162: 0 | M162: =IF(H162>0,H162-Interface!$G$15+M161,$M$2-Interface!$G$15+M161) -> -37.5 | N162: -37.3 | P162: =IF(M162=0,Q156,IF((P161+Q161)<=0,0,P161+Q161)) -> 0 | Q162: =IF(M162=-$Q$3,0,IF(M162<-O158,IF(Q156>-O160,IF(Q156<O157,IF(Q159<-O160,Q160,IF(Q156=0,Q159,IF(Q156=O159,Q156+Q159,Q159-Q160))),IF(Q159<=-O157,Q159-Q160,IF((Q156-Q160)>0,0,41))),0),0)) -> 0
C163: Ajustement Compteur | E163: 0 | F163: =F155+1 -> 20 | G163: =G156+G157+G158+G159+G160+G161+G162 -> 0 | H163: =SUM(H156:H162) -> 0 | I163: =I162 -> 0 | J163: + | K163: 0 | M163: -37.5 | N163: -37.3 | O163: =((P163-INT(P163))*5/3)+INT(P163) -> 0 | P163: =((P162-INT(P162))*3/5)+INT(P162)+E163 -> 0 | Q163: =((Q162-ROUNDDOWN(Q162,0))/5*3)+ROUNDDOWN(Q162,0) -> 0 | S163: =SUM(S156:S162) -> 0 | T163: 0 | U163: 0 | V163: 0 | X163: =SUM(X156:X162) -> 0 | Y163: =SUM(Y156:Y162)+IF(Interface!$P$11=O157,IF(Q156<O156,IF(Q156+Q157>(O156-O158),Q156+Q157-O156,0),Q157)) -> 0
B164: =B162+1 -> 2023-05-22 | G164: =D164-C164+F164-E164 -> 00:00:00 | H164: =(G164-INT(G164))*24 -> 0 | I164: =IF(H164>0,H164-Interface!$G$9,0) -> 0 | J164: + | K164: 0 | M164: =IF(H164>0,H164-Interface!$G$9,$M$2-Interface!$G$9) -> -7.5 | N164: -7.3 | O164: =Interface!$S$9 -> 4 | P164: Report | Q164: =O163 -> 0 | Z164: =IF(S164>0,1,IF(T164>0,2,IF(U164>0,3,IF(V164>0,4,IF(W164>0,W164,IF(X164>0,7,"")))))) -> 
B165: =B164+1 -> 2023-05-23 | G165: 00:00:00 | H165: 0 | I165: =IF(H165>0,H165-Interface!$G$10+I164,0+I164) -> 0 | J165: + | K165: 0 | M165: =IF(H165>0,H165-Interface!$G$10+M164,$M$2-Interface!$G$10+M164) -> -15 | N165: -15 | O165: =Interface!$S$11 -> 1 | P165: En Plus | Q165: =IF(M170>0,M170,0) -> 0 | Z165: =IF(S165>0,1,IF(T165>0,2,IF(U165>0,3,IF(V165>0,4,IF(W165>0,W165,IF(X165>0,7,"")))))) -> 
B166: 2023-05-24 | G166: 00:00:00 | H166: 0 | I166: =IF(H166>0,H166-Interface!$G$11+I165,0+I165) -> 0 | J166: + | K166: 0 | M166: =IF(H166>0,H166-Interface!$G$11+M165,$M$2-Interface!$G$11+M165) -> -22.5 | N166: -22.3 | O166: 0.01 | P166: Retenue + | Q166: =IF(Q165 > O169,O165,Q165) -> 0
B167: 2023-05-25 | G167: 00:00:00 | H167: 0 | I167: =IF(H167>0,H167-Interface!$G$12+I166,0+I166) -> 0 | J167: + | K167: 0 | M167: =IF(H167>0,H167-Interface!$G$12+M166,$M$2-Interface!$G$12+M166) -> -30 | N167: -30 | O167: =IF(Q167<0,-Q167,Q167) -> 0 | P167: En Moins | Q167: =IF(M170<-($Q$3-O166),0,IF(M170<0,M170,0)) -> 0
B168: 2023-05-26 | G168: 00:00:00 | H168: 0 | I168: =IF(H168>0,H168-Interface!$G$13+I167,0+I167) -> 0 | J168: + | K168: 0 | M168: =IF(H168>0,H168-Interface!$G$13+M167,$M$2-Interface!$G$13+M167) -> -37.5 | N168: -37.3 | O168: =SUM(O165-O166) -> 0.99 | P168: Retenue - | Q168: =IF(Q167=-Q163,0,IF(Q167>=0,0,IF(Q167>-O168,IF(Q164<O165,IF(Q167>-O168,IF(Q164=O167,Q167,IF(O167>Q164,IF((Q164-O165)<Q167,IF(O167>Q164,-Q164,Q164+Q167),-Q164),Q167)),Q167),Q167),IF(Q164<O165,IF(Q167>=-O168,44,Q164+Q167),-O165)))) -> 0
B169: 2023-05-27 | G169: 00:00:00 | H169: 0 | I169: =IF(H169>0,H169-Interface!$G$14+I168,0+I168) -> 0 | J169: + | K169: 0 | M169: =IF(H169>0,H169-Interface!$G$14+M168,$M$2-Interface!$G$14+M168) -> -37.5 | N169: -37.3 | O169: =SUM(O165+O166) -> 1.01 | P169: =IF(M170=0,Q164, IF(M170=-$Q$3,Q164,IF(Q164+Q166>O164,0,IF(Q164<O165,IF(Q166>0,Q164+Q168+Q166,Q164-O167),0)))) -> 0 | Q169: =IF(M170=-$Q$3,0,IF(Q164+Q166>O164,O164,IF(Q164>=O165,IF(Q168<=-O166,Q164+Q168,Q164+Q166),0))) -> 0
B170: 2023-05-28 | G170: 00:00:00 | H170: 0 | I170: =IF(H170>0,H170-Interface!$G$15+I169,0+I169) -> 0 | J170: + | K170: 0 | M170: =IF(H170>0,H170-Interface!$G$15+M169,$M$2-Interface!$G$15+M169) -> -37.5 | N170: -37.3 | P170: =IF(M170=0,Q164,IF((P169+Q169)<=0,0,P169+Q169)) -> 0 | Q170: =IF(M170=-$Q$3,0,IF(M170<-O166,IF(Q164>-O168,IF(Q164<O165,IF(Q167<-O168,Q168,IF(Q164=0,Q167,IF(Q164=O167,Q164+Q167,Q167-Q168))),IF(Q167<=-O165,Q167-Q168,IF((Q164-Q168)>0,0,41))),0),0)) -> 0
C171: Ajustement Compteur | E171: 0 | F171: =F163+1 -> 21 | G171: =G164+G165+G166+G167+G168+G169+G170 -> 0 | H171: =SUM(H164:H170) -> 0 | I171: =I170 -> 0 | J171: + | K171: 0 | M171: -37.5 | N171: -37.3 | O171: =((P171-INT(P171))*5/3)+INT(P171) -> 0 | P171: =((P170-INT(P170))*3/5)+INT(P170)+E171 -> 0 | Q171: =((Q170-ROUNDDOWN(Q170,0))/5*3)+ROUNDDOWN(Q170,0) -> 0 | S171: =SUM(S164:S170) -> 0 | T171: 0 | U171: 0 | V171: 0 | X171: =SUM(X164:X170) -> 0 | Y171: =SUM(Y164:Y170)+IF(Interface!$P$11=O165,IF(Q164<O164,IF(Q164+Q165>(O164-O166),Q164+Q165-O164,0),Q165)) -> 0
B172: =B170+1 -> 2023-05-29 | G172: =D172-C172+F172-E172 -> 00:00:00 | H172: =(G172-INT(G172))*24 -> 0 | I172: =IF(H172>0,H172-Interface!$G$9,0) -> 0 | J172: + | K172: 0 | M172: =IF(H172>0,H172-Interface!$G$9,$M$2-Interface!$G$9) -> -7.5 | N172: -7.3 | O172: =Interface!$S$9 -> 4 | P172: Report | Q172: =O171 -> 0 | Z172: =IF(S172>0,1,IF(T172>0,2,IF(U172>0,3,IF(V172>0,4,IF(W172>0,W172,IF(X172>0,7,"")))))) -> 
B173: =B172+1 -> 2023-05-30 | G173: 00:00:00 | H173: 0 | I173: =IF(H173>0,H173-Interface!$G$10+I172,0+I172) -> 0 | J173: + | K173: 0 | M173: =IF(H173>0,H173-Interface!$G$10+M172,$M$2-Interface!$G$10+M172) -> -15 | N173: -15 | O173: =Interface!$S$11 -> 1 | P173: En Plus | Q173: =IF(M178>0,M178,0) -> 0 | Z173: =IF(S173>0,1,IF(T173>0,2,IF(U173>0,3,IF(V173>0,4,IF(W173>0,W173,IF(X173>0,7,"")))))) -> 
B174: 2023-05-31 | G174: 00:00:00 | H174: 0 | I174: =IF(H174>0,H174-Interface!$G$11+I173,0+I173) -> 0 | J174: + | K174: 0 | M174: =IF(H174>0,H174-Interface!$G$11+M173,$M$2-Interface!$G$11+M173) -> -22.5 | N174: -22.3 | O174: 0.01 | P174: Retenue + | Q174: =IF(Q173 > O177,O173,Q173) -> 0
B175: 2023-06-01 | G175: 00:00:00 | H175: 0 | I175: =IF(H175>0,H175-Interface!$G$12+I174,0+I174) -> 0 | J175: + | K175: 0 | M175: =IF(H175>0,H175-Interface!$G$12+M174,$M$2-Interface!$G$12+M174) -> -30 | N175: -30 | O175: =IF(Q175<0,-Q175,Q175) -> 0 | P175: En Moins | Q175: =IF(M178<-($Q$3-O174),0,IF(M178<0,M178,0)) -> 0
B176: 2023-06-02 | G176: 00:00:00 | H176: 0 | I176: =IF(H176>0,H176-Interface!$G$13+I175,0+I175) -> 0 | J176: + | K176: 0 | M176: =IF(H176>0,H176-Interface!$G$13+M175,$M$2-Interface!$G$13+M175) -> -37.5 | N176: -37.3 | O176: =SUM(O173-O174) -> 0.99 | P176: Retenue - | Q176: =IF(Q175=-Q171,0,IF(Q175>=0,0,IF(Q175>-O176,IF(Q172<O173,IF(Q175>-O176,IF(Q172=O175,Q175,IF(O175>Q172,IF((Q172-O173)<Q175,IF(O175>Q172,-Q172,Q172+Q175),-Q172),Q175)),Q175),Q175),IF(Q172<O173,IF(Q175>=-O176,44,Q172+Q175),-O173)))) -> 0
B177: 2023-06-03 | G177: 00:00:00 | H177: 0 | I177: =IF(H177>0,H177-Interface!$G$14+I176,0+I176) -> 0 | J177: + | K177: 0 | M177: =IF(H177>0,H177-Interface!$G$14+M176,$M$2-Interface!$G$14+M176) -> -37.5 | N177: -37.3 | O177: =SUM(O173+O174) -> 1.01 | P177: =IF(M178=0,Q172, IF(M178=-$Q$3,Q172,IF(Q172+Q174>O172,0,IF(Q172<O173,IF(Q174>0,Q172+Q176+Q174,Q172-O175),0)))) -> 0 | Q177: =IF(M178=-$Q$3,0,IF(Q172+Q174>O172,O172,IF(Q172>=O173,IF(Q176<=-O174,Q172+Q176,Q172+Q174),0))) -> 0
B178: 2023-06-04 | G178: 00:00:00 | H178: 0 | I178: =IF(H178>0,H178-Interface!$G$15+I177,0+I177) -> 0 | J178: + | K178: 0 | M178: =IF(H178>0,H178-Interface!$G$15+M177,$M$2-Interface!$G$15+M177) -> -37.5 | N178: -37.3 | P178: =IF(M178=0,Q172,IF((P177+Q177)<=0,0,P177+Q177)) -> 0 | Q178: =IF(M178=-$Q$3,0,IF(M178<-O174,IF(Q172>-O176,IF(Q172<O173,IF(Q175<-O176,Q176,IF(Q172=0,Q175,IF(Q172=O175,Q172+Q175,Q175-Q176))),IF(Q175<=-O173,Q175-Q176,IF((Q172-Q176)>0,0,41))),0),0)) -> 0
B179: Mai | C179: Ajustement Compteur | E179: 0 | F179: =F171+1 -> 22 | G179: =G172+G173+G174+G175+G176+G177+G178 -> 0 | H179: =SUM(H172:H178) -> 0 | I179: =I178 -> 0 | J179: + | K179: 0 | M179: -37.5 | N179: -37.3 | O179: =((P179-INT(P179))*5/3)+INT(P179) -> 0 | P179: =((P178-INT(P178))*3/5)+INT(P178)+E179 -> 0 | Q179: =((Q178-ROUNDDOWN(Q178,0))/5*3)+ROUNDDOWN(Q178,0) -> 0 | S179: =SUM(S172:S178)+S147+S155+S163+S171 -> 0 | T179: =SUM(T172:T178)+T147+T155+T163+T171 -> 0 | U179: =SUM(U172:U178)+U147+U155+U163+U171 -> 0 | V179: =SUM(V172:V178)+V147+V155+V163+V171 -> 0 | X179: =SUM(X172:X178)+X147+X155+X163+X171 -> 0 | Y179: =(SUM(Y172:Y178)+Y171+Y163+Y155+Y147)+IF(Interface!$Q$12=1,IF(Q172<O164,IF(Q172+Q173>(O164-O166),Q172+Q173-O172,0),Q173)) -> 0
B180: =B178+1 -> 2023-06-05 | G180: =D180-C180+F180-E180 -> 00:00:00 | H180: =(G180-INT(G180))*24 -> 0 | I180: =IF(H180>0,H180-Interface!$G$9,0) -> 0 | J180: + | K180: 0 | M180: =IF(H180>0,H180-Interface!$G$9,$M$2-Interface!$G$9) -> -7.5 | N180: -7.3 | O180: =Interface!$S$9 -> 4 | P180: Report | Q180: =O179 -> 0 | Z180: =IF(S180>0,1,IF(T180>0,2,IF(U180>0,3,IF(V180>0,4,IF(W180>0,W180,IF(X180>0,7,"")))))) -> 
B181: =B180+1 -> 2023-06-06 | G181: 00:00:00 | H181: 0 | I181: =IF(H181>0,H181-Interface!$G$10+I180,0+I180) -> 0 | J181: + | K181: 0 | M181: =IF(H181>0,H181-Interface!$G$10+M180,$M$2-Interface!$G$10+M180) -> -15 | N181: -15 | O181: =Interface!$S$11 -> 1 | P181: En Plus | Q181: =IF(M186>0,M186,0) -> 0 | Z181: =IF(S181>0,1,IF(T181>0,2,IF(U181>0,3,IF(V181>0,4,IF(W181>0,W181,IF(X181>0,7,"")))))) -> 
B182: 2023-06-07 | G182: 00:00:00 | H182: 0 | I182: =IF(H182>0,H182-Interface!$G$11+I181,0+I181) -> 0 | J182: + | K182: 0 | M182: =IF(H182>0,H182-Interface!$G$11+M181,$M$2-Interface!$G$11+M181) -> -22.5 | N182: -22.3 | O182: 0.01 | P182: Retenue + | Q182: =IF(Q181 > O185,O181,Q181) -> 0
B183: 2023-06-08 | G183: 00:00:00 | H183: 0 | I183: =IF(H183>0,H183-Interface!$G$12+I182,0+I182) -> 0 | J183: + | K183: 0 | M183: =IF(H183>0,H183-Interface!$G$12+M182,$M$2-Interface!$G$12+M182) -> -30 | N183: -30 | O183: =IF(Q183<0,-Q183,Q183) -> 0 | P183: En Moins | Q183: =IF(M186<-($Q$3-O182),0,IF(M186<0,M186,0)) -> 0
B184: 2023-06-09 | G184: 00:00:00 | H184: 0 | I184: =IF(H184>0,H184-Interface!$G$13+I183,0+I183) -> 0 | J184: + | K184: 0 | M184: =IF(H184>0,H184-Interface!$G$13+M183,$M$2-Interface!$G$13+M183) -> -37.5 | N184: -37.3 | O184: =SUM(O181-O182) -> 0.99 | P184: Retenue - | Q184: =IF(Q183=-Q179,0,IF(Q183>=0,0,IF(Q183>-O184,IF(Q180<O181,IF(Q183>-O184,IF(Q180=O183,Q183,IF(O183>Q180,IF((Q180-O181)<Q183,IF(O183>Q180,-Q180,Q180+Q183),-Q180),Q183)),Q183),Q183),IF(Q180<O181,IF(Q183>=-O184,44,Q180+Q183),-O181)))) -> 0
B185: 2023-06-10 | G185: 00:00:00 | H185: 0 | I185: =IF(H185>0,H185-Interface!$G$14+I184,0+I184) -> 0 | J185: + | K185: 0 | M185: =IF(H185>0,H185-Interface!$G$14+M184,$M$2-Interface!$G$14+M184) -> -37.5 | N185: -37.3 | O185: =SUM(O181+O182) -> 1.01 | P185: =IF(M186=0,Q180, IF(M186=-$Q$3,Q180,IF(Q180+Q182>O180,0,IF(Q180<O181,IF(Q182>0,Q180+Q184+Q182,Q180-O183),0)))) -> 0 | Q185: =IF(M186=-$Q$3,0,IF(Q180+Q182>O180,O180,IF(Q180>=O181,IF(Q184<=-O182,Q180+Q184,Q180+Q182),0))) -> 0
B186: 2023-06-11 | G186: 00:00:00 | H186: 0 | I186: =IF(H186>0,H186-Interface!$G$15+I185,0+I185) -> 0 | J186: + | K186: 0 | M186: =IF(H186>0,H186-Interface!$G$15+M185,$M$2-Interface!$G$15+M185) -> -37.5 | N186: -37.3 | P186: =IF(M186=0,Q180,IF((P185+Q185)<=0,0,P185+Q185)) -> 0 | Q186: =IF(M186=-$Q$3,0,IF(M186<-O182,IF(Q180>-O184,IF(Q180<O181,IF(Q183<-O184,Q184,IF(Q180=0,Q183,IF(Q180=O183,Q180+Q183,Q183-Q184))),IF(Q183<=-O181,Q183-Q184,IF((Q180-Q184)>0,0,41))),0),0)) -> 0
C187: Ajustement Compteur | E187: 0 | F187: =F179+1 -> 23 | G187: =G180+G181+G182+G183+G184+G185+G186 -> 0 | H187: =SUM(H180:H186) -> 0 | I187: =I186 -> 0 | J187: + | K187: 0 | M187: -37.5 | N187: -37.3 | O187: =((P187-INT(P187))*5/3)+INT(P187) -> 0 | P187: =((P186-INT(P186))*3/5)+INT(P186)+E187 -> 0 | Q187: =((Q186-ROUNDDOWN(Q186,0))/5*3)+ROUNDDOWN(Q186,0) -> 0 | S187: =SUM(S180:S186) -> 0 | T187: 0 | U187: 0 | V187: 0 | X187: =SUM(X180:X186) -> 0 | Y187: =SUM(Y180:Y186)+IF(Interface!$P$11=O181,IF(Q180<O180,IF(Q180+Q181>(O180-O182),Q180+Q181-O180,0),Q181)) -> 0
B188: =B186+1 -> 2023-06-12 | G188: =D188-C188+F188-E188 -> 00:00:00 | H188: =(G188-INT(G188))*24 -> 0 | I188: =IF(H188>0,H188-Interface!$G$9,0) -> 0 | J188: + | K188: 0 | M188: =IF(H188>0,H188-Interface!$G$9,$M$2-Interface!$G$9) -> -7.5 | N188: -7.3 | O188: =Interface!$S$9 -> 4 | P188: Report | Q188: =O187 -> 0 | Z188: =IF(S188>0,1,IF(T188>0,2,IF(U188>0,3,IF(V188>0,4,IF(W188>0,W188,IF(X188>0,7,"")))))) -> 
B189: =B188+1 -> 2023-06-13 | G189: 00:00:00 | H189: 0 | I189: =IF(H189>0,H189-Interface!$G$10+I188,0+I188) -> 0 | J189: + | K189: 0 | M189: =IF(H189>0,H189-Interface!$G$10+M188,$M$2-Interface!$G$10+M188) -> -15 | N189: -15 | O189: =Interface!$S$11 -> 1 | P189: En Plus | Q189: =IF(M194>0,M194,0) -> 0 | Z189: =IF(S189>0,1,IF(T189>0,2,IF(U189>0,3,IF(V189>0,4,IF(W189>0,W189,IF(X189>0,7,"")))))) -> 
B190: 2023-06-14 | G190: 00:00:00 | H190: 0 | I190: =IF(H190>0,H190-Interface!$G$11+I189,0+I189) -> 0 | J190: + | K190: 0 | M190: =IF(H190>0,H190-Interface!$G$11+M189,$M$2-Interface!$G$11+M189) -> -22.5 | N190: -22.3 | O190: 0.01 | P190: Retenue + | Q190: =IF(Q189 > O193,O189,Q189) -> 0
B191: 2023-06-15 | G191: 00:00:00 | H191: 0 | I191: =IF(H191>0,H191-Interface!$G$12+I190,0+I190) -> 0 | J191: + | K191: 0 | M191: =IF(H191>0,H191-Interface!$G$12+M190,$M$2-Interface!$G$12+M190) -> -30 | N191: -30 | O191: =IF(Q191<0,-Q191,Q191) -> 0 | P191: En Moins | Q191: =IF(M194<-($Q$3-O190),0,IF(M194<0,M194,0)) -> 0
B192: 2023-06-16 | G192: 00:00:00 | H192: 0 | I192: =IF(H192>0,H192-Interface!$G$13+I191,0+I191) -> 0 | J192: + | K192: 0 | M192: =IF(H192>0,H192-Interface!$G$13+M191,$M$2-Interface!$G$13+M191) -> -37.5 | N192: -37.3 | O192: =SUM(O189-O190) -> 0.99 | P192: Retenue - | Q192: =IF(Q191=-Q187,0,IF(Q191>=0,0,IF(Q191>-O192,IF(Q188<O189,IF(Q191>-O192,IF(Q188=O191,Q191,IF(O191>Q188,IF((Q188-O189)<Q191,IF(O191>Q188,-Q188,Q188+Q191),-Q188),Q191)),Q191),Q191),IF(Q188<O189,IF(Q191>=-O192,44,Q188+Q191),-O189)))) -> 0
B193: 2023-06-17 | G193: 00:00:00 | H193: 0 | I193: =IF(H193>0,H193-Interface!$G$14+I192,0+I192) -> 0 | J193: + | K193: 0 | M193: =IF(H193>0,H193-Interface!$G$14+M192,$M$2-Interface!$G$14+M192) -> -37.5 | N193: -37.3 | O193: =SUM(O189+O190) -> 1.01 | P193: =IF(M194=0,Q188, IF(M194=-$Q$3,Q188,IF(Q188+Q190>O188,0,IF(Q188<O189,IF(Q190>0,Q188+Q192+Q190,Q188-O191),0)))) -> 0 | Q193: =IF(M194=-$Q$3,0,IF(Q188+Q190>O188,O188,IF(Q188>=O189,IF(Q192<=-O190,Q188+Q192,Q188+Q190),0))) -> 0
B194: 2023-06-18 | G194: 00:00:00 | H194: 0 | I194: =IF(H194>0,H194-Interface!$G$15+I193,0+I193) -> 0 | J194: + | K194: 0 | M194: =IF(H194>0,H194-Interface!$G$15+M193,$M$2-Interface!$G$15+M193) -> -37.5 | N194: -37.3 | P194: =IF(M194=0,Q188,IF((P193+Q193)<=0,0,P193+Q193)) -> 0 | Q194: =IF(M194=-$Q$3,0,IF(M194<-O190,IF(Q188>-O192,IF(Q188<O189,IF(Q191<-O192,Q192,IF(Q188=0,Q191,IF(Q188=O191,Q188+Q191,Q191-Q192))),IF(Q191<=-O189,Q191-Q192,IF((Q188-Q192)>0,0,41))),0),0)) -> 0
C195: Ajustement Compteur | E195: 0 | F195: =F187+1 -> 24 | G195: =G188+G189+G190+G191+G192+G193+G194 -> 0 | H195: =SUM(H188:H194) -> 0 | I195: =I194 -> 0 | J195: + | K195: 0 | M195: -37.5 | N195: -37.3 | O195: =((P195-INT(P195))*5/3)+INT(P195) -> 0 | P195: =((P194-INT(P194))*3/5)+INT(P194)+E195 -> 0 | Q195: =((Q194-ROUNDDOWN(Q194,0))/5*3)+ROUNDDOWN(Q194,0) -> 0 | S195: =SUM(S188:S194) -> 0 | T195: 0 | U195: 0 | V195: 0 | X195: =SUM(X188:X194) -> 0 | Y195: =SUM(Y188:Y194)+IF(Interface!$P$11=O189,IF(Q188<O188,IF(Q188+Q189>(O188-O190),Q188+Q189-O188,0),Q189)) -> 0
B196: =B194+1 -> 2023-06-19 | G196: =D196-C196+F196-E196 -> 00:00:00 | H196: =(G196-INT(G196))*24 -> 0 | I196: =IF(H196>0,H196-Interface!$G$9,0) -> 0 | J196: + | K196: 0 | M196: =IF(H196>0,H196-Interface!$G$9,$M$2-Interface!$G$9) -> -7.5 | N196: =((M196-ROUNDDOWN(M196,0))/5*3)+ROUNDDOWN(M196,0) -> -7.3 | O196: =Interface!$S$9 -> 4 | P196: Report | Q196: =O195 -> 0 | Z196: =IF(S196>0,1,IF(T196>0,2,IF(U196>0,3,IF(V196>0,4,IF(W196>0,W196,IF(X196>0,7,"")))))) -> 
B197: =B196+1 -> 2023-06-20 | G197: 00:00:00 | H197: 0 | I197: =IF(H197>0,H197-Interface!$G$10+I196,0+I196) -> 0 | J197: + | K197: 0 | M197: =IF(H197>0,H197-Interface!$G$10+M196,$M$2-Interface!$G$10+M196) -> -15 | N197: -15 | O197: =Interface!$S$11 -> 1 | P197: En Plus | Q197: =IF(M202>0,M202,0) -> 0 | Z197: =IF(S197>0,1,IF(T197>0,2,IF(U197>0,3,IF(V197>0,4,IF(W197>0,W197,IF(X197>0,7,"")))))) -> 
B198: 2023-06-21 | G198: 00:00:00 | H198: 0 | I198: =IF(H198>0,H198-Interface!$G$11+I197,0+I197) -> 0 | J198: + | K198: 0 | M198: =IF(H198>0,H198-Interface!$G$11+M197,$M$2-Interface!$G$11+M197) -> -22.5 | N198: -22.3 | O198: 0.01 | P198: Retenue + | Q198: =IF(Q197 > O201,O197,Q197) -> 0
B199: 2023-06-22 | G199: 00:00:00 | H199: 0 | I199: =IF(H199>0,H199-Interface!$G$12+I198,0+I198) -> 0 | J199: + | K199: 0 | M199: =IF(H199>0,H199-Interface!$G$12+M198,$M$2-Interface!$G$12+M198) -> -30 | N199: -30 | O199: =IF(Q199<0,-Q199,Q199) -> 0 | P199: En Moins | Q199: =IF(M202<-($Q$3-O198),0,IF(M202<0,M202,0)) -> 0
B200: 2023-06-23 | G200: 00:00:00 | H200: 0 | I200: =IF(H200>0,H200-Interface!$G$13+I199,0+I199) -> 0 | J200: + | K200: 0 | M200: =IF(H200>0,H200-Interface!$G$13+M199,$M$2-Interface!$G$13+M199) -> -37.5 | N200: -37.3 | O200: =SUM(O197-O198) -> 0.99 | P200: Retenue - | Q200: =IF(Q199=-Q195,0,IF(Q199>=0,0,IF(Q199>-O200,IF(Q196<O197,IF(Q199>-O200,IF(Q196=O199,Q199,IF(O199>Q196,IF((Q196-O197)<Q199,IF(O199>Q196,-Q196,Q196+Q199),-Q196),Q199)),Q199),Q199),IF(Q196<O197,IF(Q199>=-O200,44,Q196+Q199),-O197)))) -> 0
... 233 more rows

Sheet Carton (hidden)
AD6: 0
U9: Date du 1° Lundi | X9: Année en cour | AD9: Gestion Des Compteurs
S10: 0 | U10: 2023-01-02 | X10: Effectuées En 2023
AD11: 2023
AD12: Michel Archidiacono
AD13: SN-2023-01-0001-AM
AD14: Mich-Logiciel.fr
